Cogmind - Beta 16 @@@ ROGUE MODE // 2025.11.24 @ 16:39:25 Player: k1ll3rb0t Result: Destroyed 0b10! Performance ------------- Evolutions (9) 4500 Regions Visited (31) 6200 Robots Destroyed (302) 1510 Value Destroyed (9764) 9764 Prototype IDs (76) 1520 Alien Tech Used (2) 400 Bonus (22557) 22557 TOTAL SCORE: 46451 Bonus ------- High Alert Combat Kills 806 Follower Combat Kills 1776 Awakened Behemoth Slayer 1000 Entered Garrisons 200 Network Hubs Disabled 200 Met Data Miner 300 Acquired ECA 300 Met Warlord at Base 500 MAIN.C Attacked Warlord 500 Built Enhanced Grunts 300 Met R17 at Cetus 500 Used Core Reset Matrix 3000 Met R17 at Research 2000 Met Warlord at Research 2000 Met Sigix 2000 Escaped with Sigix 5000 Win 3000 Friendly Fire -825 Cogmind --------- Core Integrity 1544/1600 Matter 22/300 Energy 396/400 System Corruption 4% Temperature Cool (12) Movement Flying (27) Location Tau Ceti IV Orbit Parts ------- > --- POWER (2) -------- Micro Antimatter Reactor Improved Quantum Reactor > --- PROPULSION (8) --- Cooled Nuclear Pulse Thruster Nuclear Pulse Array Q-thruster Impulse Thruster Array > --- UTILITY (14) ----- Advanced Cooling System Large Storage Unit Quantum Shading Machine Experimental Optical Array Advanced Signal Interpreter Improved Terrain Scanner Surveybot 24 Chip Light Regenerative Plating Graphene Brace Improved Hacking Suite Advanced Hacking Suite Experimental Hacking Suite > --- WEAPON (2) ------- Multirail > --- INVENTORY (15) --- Improved Fusion Compressor Advanced Energy Well (500) Compact Matter Pod (0) Stasis Canceller Transdimensional Reconstructor Enhanced Nova Cannon Multirail Multirail Fusion Bomb Launcher Nanosword CR-A16's Behemoth Slayer Sigix Containment Pod Peak State ------------ > --- POWER ------------ Micro Antimatter Reactor Improved Quantum Reactor > --- PROPULSION ------- Field Propulsion Drive Cooled Nuclear Pulse Thruster Nuclear Pulse Array Nuclear Pulse Array Q-thruster Q-thruster > --- UTILITY ---------- Advanced Cooling System Large Storage Unit Quantum Shading Machine Experimental Optical Array Long-range Sensor Array Advanced Signal Interpreter Improved Terrain Scanner Surveybot 24 Chip Light Regenerative Plating Graphene Brace Improved Hacking Suite Advanced Hacking Suite Experimental Hacking Suite Ghost Barrier > --- WEAPON ----------- Multirail Multirail > --- INVENTORY -------- Improved Fusion Compressor Impulse Thruster Array Advanced Energy Well Compact Matter Pod Stasis Canceller Transdimensional Reconstructor Enhanced Nova Cannon Multirail Fusion Bomb Launcher Point Singularity Launcher Nanosword CR-A16's Behemoth Slayer Sigix Containment Pod [Rating: 198] Favorites ----------- Power Micro Fission Core Engine Cooled Ion Engine Power Core Micro Fission Core Reactor Micro Antimatter Reactor Propulsion Cooled VTOL Module Treads Light Treads Leg Aluminum Leg Wheel Armored Wheel Hover Unit Gravmag System Flight Unit Cooled VTOL Module Utility Hacking Suite Device Improved Heat Sink Storage Large Storage Unit Processor Surveybot 24 Chip Hackware Hacking Suite Protection Light Regenerative Plating Weapon Shock Maul Energy Gun Advanced Beam Rifle Energy Cannon Heavy Particle Cannon Ballistic Gun Hypervelocity Coil Gun Ballistic Cannon Light Cannon Launcher Missile Launcher Special Weapon Improved Remote Datajack Impact Weapon Shock Maul Slashing Weapon Great Axe Piercing Weapon CR-A16's Behemoth Slayer Build | -11 -10 -9 -9 -9 -8 -8 -8 -7 -7 -7 -6 -6 -6 -6 -6 -6 -5 -5 -5 -5 -5 -4 -4 -4 -4 -4 -4 -3 -3 -2 -1 ------- Run | Yrd Mat Mat Min Exi Min Mat Gar Fac Low Dat Pro Fac Low Low Zio Dee Pro Fac Upp Upp War Pro Fac Ext Cet Arc Hub Res Qua Res Acc Slots Evolved 18 | . . 2 . . . 2 . 2 . . . 2 . . . . . 2 . . . . 2 . . . . 2 . 2 2 Power 1 | . . . . . . . . . . . . . . . . . . 1 . . . . . . . . . . . . . Propulsion 6 | . . 1 . . . 1 . 2 . . . . . . . . . 1 . . . . . . . . . 1 . . . Utility 11 | . . 1 . . . 1 . . . . . 2 . . . . . . . . . . 2 . . . . 1 . 2 2 Weapon . | . . . . . . . . . . . . . . . . . . . . . . . . . . . . . . . . Parts Attached 325 | 7 15 32 . . 2 37 15 27 1 . . 25 2 1 . . 3 24 1 1 7 . 14 11 9 11 8 20 3 42 7 Power 43 | 1 2 3 . . . 2 1 1 1 . . 1 1 . . . . 7 . . . . 3 1 1 2 2 6 . 8 . Engine 20 | 1 2 1 . . . 2 1 1 1 . . 1 . . . . . 4 . . . . . . . 2 . 3 . 1 . Core 13 | . . 2 . . . . . . . . . . 1 . . . . 3 . . . . 3 1 . . 1 . . 2 . Reactor 10 | . . . . . . . . . . . . . . . . . . . . . . . . . 1 . 1 3 . 5 . Propulsion 90 | 2 4 12 . . . 16 10 12 . . . 3 . . . . 1 5 . 1 2 . 1 3 . 1 3 5 2 5 2 Treads 18 | . . 6 . . . 10 2 . . . . . . . . . . . . . . . . . . . . . . . . Leg 10 | 2 2 . . . . . 6 . . . . . . . . . . . . . . . . . . . . . . . . Wheel 11 | . 2 5 . . . 4 . . . . . . . . . . . . . . . . . . . . . . . . . Hover 2 | . . . . . . 1 1 . . . . . . . . . . . . . . . . . . . . . . . . Flight 49 | . . 1 . . . 1 1 12 . . . 3 . . . . 1 5 . 1 2 . 1 3 . 1 3 5 2 5 2 Utility 119 | 2 3 5 . . 2 7 3 10 . . . 13 1 1 . . 1 10 1 . 5 . 7 4 5 8 2 8 1 18 2 Device 49 | 1 . 1 . . 1 5 2 5 . . . 5 . . . . . 7 . . 2 . 3 4 . 3 . 4 1 5 . Storage 17 | 1 2 . . . . . . 2 . . . 1 . . . . . . 1 . 1 . 1 . 1 . 1 . . 5 1 Processor 22 | . 1 . . . . . . 1 . . . 1 1 1 . . 1 3 . . 1 . 2 . 3 . 1 . . 6 . Hackware 16 | . . . . . . . . 2 . . . 2 . . . . . . . . 1 . . . . 4 . 4 . 2 1 Protection 15 | . . 4 . . 1 2 1 . . . . 4 . . . . . . . . . . 1 . 1 1 . . . . . Artifact . | . . . . . . . . . . . . . . . . . . . . . . . . . . . . . . . . Weapon 73 | 2 6 12 . . . 12 1 4 . . . 8 . . . . 1 2 . . . . 3 3 3 . 1 1 . 11 3 Energy Gun 14 | . 2 6 . . . 4 . 1 . . . . . . . . . . . . . . . . 1 . . . . . . Energy Cannon 8 | . . 1 . . . 2 . . . . . 3 . . . . . . . . . . . . . . . . . 2 . Ballistic Gun 23 | 2 2 3 . . . 4 1 . . . . 2 . . . . . . . . . . 3 2 2 . . . . . 2 Ballistic Cannon 1 | . 1 . . . . . . . . . . . . . . . . . . . . . . . . . . . . . . Launcher 11 | . . . . . . 1 . 2 . . . 2 . . . . . 2 . . . . . . . . . . . 3 1 Special Weapon 5 | . 1 . . . . . . . . . . . . . . . . . . . . . . . . . 1 . . 3 . Impact Weapon 3 | . . 2 . . . . . . . . . 1 . . . . . . . . . . . . . . . . . . . Slashing Weapon 5 | . . . . . . 1 . 1 . . . . . . . . . . . . . . . . . . . 1 . 2 . Piercing Weapon 3 | . . . . . . . . . . . . . . . . . 1 . . . . . . 1 . . . . . 1 . Special Melee Weapon . | . . . . . . . . . . . . . . . . . . . . . . . . . . . . . . . . Unidentified Prototypes 52 | . 1 6 . . . 6 . 3 . . . 4 . 1 . . . 5 . . 6 . 2 . 4 . . 3 1 8 2 Corrupted Parts 5 | . . . . . . . 1 . . . . . . . . . . . . . . . 1 . 2 . . . . . 1 System Corruption 21 | . . . . . . . 1 . . . . . . . . . . . . . . . 4 . 14 . . . . . 2 Parts Lost 68 | . 4 5 . . 2 6 6 2 1 . . 4 1 . . . . 2 . 1 . . 3 5 2 1 10 4 1 . 8 Power 8 | . . . . . . . . . 1 . . . . . . . . . . . . . 1 1 1 . 3 1 . . . Propulsion 33 | . 2 3 . . . 2 4 2 . . . 2 . . . . . 1 . 1 . . . 2 . 1 6 2 . . 5 Utility 19 | . . 2 . . 2 2 1 . . . . 1 1 . . . . 1 . . . . 2 2 1 . . 1 . . 3 Weapon 8 | . 2 . . . . 2 1 . . . . 1 . . . . . . . . . . . . . . 1 . 1 . . Highest Loss Streak 6 | . 2 1 . . 2 2 6 1 1 . . 2 1 . . . . 1 . 1 . . 2 2 2 1 6 3 1 . 5 To Critical Strikes . | . . . . . . . . . . . . . . . . . . . . . . . . . . . . . . . . Average Backups 15 | 6 13 22 25 25 24 24 24 9 7 8 8 9 10 9 9 10 10 9 10 10 10 10 12 13 14 14 14 14 14 12 11 Power 1 | . 1 3 3 3 3 2 1 1 . . . 1 1 1 1 1 1 . 1 1 1 1 1 . 1 1 . . 2 1 1 Propulsion 4 | 3 4 8 10 10 10 8 7 1 1 1 1 1 2 2 2 2 2 1 1 . . 1 3 2 2 1 . . . 2 1 Utility 5 | . 3 6 7 7 6 8 9 3 3 4 4 3 2 2 2 2 2 2 3 3 3 3 1 3 4 5 8 8 7 4 3 Weapon 4 | 1 3 4 5 5 5 5 5 2 1 2 2 3 4 4 4 5 5 4 4 4 4 4 4 6 5 4 4 5 3 2 4 Tool/Special . | . . . . . . . . . . . . . . . . . . . . . . . . . . . . . . . . Unused Backups 58 | . 1 7 . . . 15 1 2 . . . 3 . . 1 1 . 1 . . 1 . 7 1 2 3 . 2 . 6 4 Power 12 | . . 4 . . . 1 . . . . . 2 . . . . . . . . . . . . 1 2 . . . 1 1 Propulsion 23 | . . 2 . . . 9 1 . . . . . . . . . . . . . . . 6 . . . . 1 . 3 1 Utility 10 | . 1 . . . . 1 . 2 . . . . . . . 1 . . . . 1 . 1 . 1 . . 1 . 1 . Weapon 11 | . . 1 . . . 4 . . . . . 1 . . 1 . . 1 . . . . . 1 . . . . . 1 1 Tool/Special 2 | . . . . . . . . . . . . . . . . . . . . . . . . . . 1 . . . . 1 Average Slot Usage (%) 96 | . 99 98 100 100 99 99 97 98 99 100 100 99 98 100 100 100 100 94 94 94 93 94 94 94 92 96 90 76 92 94 92 Engine 5 | . 14 6 11 11 11 9 8 7 6 7 7 5 2 . . . . 3 5 5 5 5 1 . . 3 4 2 4 . . Core 2 | . . 4 . . . . . . . . . . 3 6 6 6 6 7 5 5 5 5 8 9 1 3 3 . . . . Reactor 1 | . . . . . . . . . . . . . . . . . . . . . . . . . 4 1 . 4 4 7 7 Treads 5 | . . 14 . . . 25 16 . . . . . . . . . . . . . . . . . . . . . . . . Leg 3 | . 26 . . . . . 14 1 . . . . . . . . . . . . . . . . . . . . . . . Wheel 4 | . . 17 33 33 33 9 . . . . . . . . . . . . . . . . . . . . . . . . . Flight 19 | . . . . . . . . 43 46 46 46 40 40 38 37 37 37 34 33 33 33 33 30 32 35 35 29 20 30 29 24 Device 10 | . . 1 11 11 10 17 18 5 7 7 7 9 4 6 6 5 6 11 16 16 15 13 12 11 10 9 7 8 11 17 20 Storage 7 | . 14 11 11 11 11 9 9 7 7 7 7 6 6 6 6 6 6 5 5 5 5 5 5 5 5 5 5 4 4 4 3 Processor 8 | . 13 9 . . . . . 1 . . . 6 6 15 18 13 12 11 11 11 11 11 14 15 17 12 14 13 13 12 11 Hackware 5 | . . . . . . . . 14 15 15 15 12 10 6 6 6 6 5 5 5 5 5 5 5 5 12 15 16 13 12 13 Protection 5 | . . 10 11 11 11 9 8 . . . . 3 7 6 6 11 12 4 . . . 2 7 6 5 5 2 . 1 2 1 Energy Gun 3 | . 8 14 . . . 9 2 . . . . . . . . . . . . . . . . . . . . . . . . Energy Cannon 1 | . . 2 11 11 11 6 . . . . . . . . . . . 1 5 5 2 3 2 . . . . . 1 2 1 Ballistic Gun 5 | . 15 4 11 11 11 1 13 7 6 7 7 6 5 5 6 6 6 3 . . . . 2 4 1 . . . . . 1 Impact Weapon 1 | . . . . . . . . . . . . 4 5 6 6 6 3 2 . . 2 5 4 3 3 2 3 2 4 3 . Peak Build Rating 198 | 8 11 24 24 24 28 39 34 55 52 50 50 77 77 82 82 83 83 103 98 98 112 113 137 143 142 142 142 141 150 182 198 Average Rating 74 | 6 9 21 24 24 24 35 29 45 49 50 50 64 74 79 82 82 82 95 98 97 105 112 131 135 131 135 127 118 145 168 190 On Entrance 77 | . 8 11 24 24 24 28 33 26 51 50 50 50 74 77 82 82 83 83 98 98 97 111 112 137 136 134 142 91 141 150 179 Avg Prop Armor Cover (%) 3 | . 10 8 . . . 15 5 1 2 2 2 2 2 . . . 2 4 . . . . 4 . . . 5 2 5 2 . Naked Turns . | . . . . . . . . . . . . . . . . . . . . . . . . . . . . . . . . Heaviest Build 107 | 12 89 103 103 103 103 107 107 98 21 21 21 34 33 29 27 31 31 40 38 38 39 38 47 49 51 48 49 48 52 68 75 Greatest Support 89 | 20 26 63 36 36 36 89 86 41 40 25 25 42 43 33 33 45 33 57 45 45 47 47 53 48 47 48 50 61 80 76 79 Greatest Overweight (x) 8 | 1 5 6 2 2 2 8 5 2 . . . 1 . . . . . 1 . . . . 1 1 1 . 2 1 1 2 1 Average Overweight (x) . | . 1 2 2 2 2 1 1 . . . . . . . . . . . . . . . . . . . . . . . . Largest Inventory Capacity 25 | 8 25 25 25 25 25 25 25 25 8 8 8 10 10 10 10 10 10 10 10 10 10 10 15 15 15 15 15 15 15 25 15 Average Capacity 16 | 7 15 25 25 25 25 25 25 9 8 8 8 9 10 10 10 10 10 10 10 10 10 10 13 15 15 15 15 15 15 15 15 Most Carried 25 | 8 16 25 25 25 25 25 25 25 8 8 8 10 10 10 10 10 10 10 10 10 10 10 15 15 15 15 15 15 15 15 15 Average Carried 16 | 6 13 23 25 25 24 24 24 8 7 8 8 9 10 9 9 9 10 9 10 9 9 10 12 13 14 14 14 14 14 14 14 Final Capacity 25 | 8 25 25 25 25 25 25 25 8 8 8 8 10 10 10 10 10 10 10 10 10 10 10 15 15 15 15 15 15 15 15 15 Final Carried 25 | 8 16 25 25 25 25 25 25 8 8 8 8 10 10 9 10 10 10 10 10 10 10 10 13 15 15 15 15 15 15 15 13 Class Distribution -------------------- 28% | Mutant 18% | Hacker-Scout 16% | Hacker-Sprinter 14% | Scavenger-Mutant 9% | Sprinter 4% | Scout 4% | Wizard-Scout Dominant Class ---------------- Scavenger-Mutant | -10/Materials Mutant | -9/Materials Mutant | -9/Mines Mutant | -9/Exiles Mutant | -8/Mines Mutant | -8/Materials Scavenger-Mutant | -8/Garrison Hacker-Sprinter | -7/Factory Hacker-Sprinter | -7/Lower Caves Hacker-Sprinter | -7/Data Miner Hacker-Sprinter | -6/Proximity Caves Hacker-Sprinter | -6/Factory Hacker-Sprinter | -6/Lower Caves Sprinter | -6/Lower Caves Sprinter | -6/Zion Sprinter | -6/Deep Caves Sprinter | -5/Proximity Caves Scout | -5/Factory Scout | -5/Upper Caves Scout | -5/Upper Caves Hacker-Scout | -5/Warlord Hacker-Scout | -4/Proximity Caves Hacker-Scout | -4/Factory Hacker-Scout | -4/Extension Hacker-Sprinter | -4/Cetus Hacker-Sprinter | -4/Archives Hacker-Scout | -4/Hub_04(d) Wizard-Scout | -3/Research Hacker-Scout | -3/Quarantine Hacker-Scout | -2/Research Wizard-Scout | -1/Access Resources | -11 -10 -9 -9 -9 -8 -8 -8 -7 -7 -7 -6 -6 -6 -6 -6 -6 -5 -5 -5 -5 -5 -4 -4 -4 -4 -4 -4 -3 -3 -2 -1 ----------- Run | Yrd Mat Mat Min Exi Min Mat Gar Fac Low Dat Pro Fac Low Low Zio Dee Pro Fac Upp Upp War Pro Fac Ext Cet Arc Hub Res Qua Res Acc Matter Collected 9696 | 308 270 650 15 . 34 731 515 711 57 . 6 461 330 81 43 7 83 912 293 10 . 150 347 907 369 148 144 410 115 1063 526 Remotely . | . . . . . . . . . . . . . . . . . . . . . . . . . . . . . . . . Salvage Created 12494 | 52 283 1809 35 . 135 1805 674 1018 . . 214 502 366 71 . 7 93 1101 232 30 . 87 552 1165 159 303 412 499 . 524 366 Parts 569 | 10 23 104 3 . 8 94 43 47 . . 1 15 9 8 . . 3 52 10 . . . 10 33 8 26 4 22 . 7 29 Haulers Intercepted 34 | . 1 6 . . . 5 . 8 . . . 1 . . . . . 2 . . . . 3 . . . 3 4 . 1 . Recyclers Shooed 12 | 2 . 1 . . . 4 . . . . . . . . . . . 3 . . . . . 2 . . . . . . . Parts Field Recycled . | . . . . . . . . . . . . . . . . . . . . . . . . . . . . . . . . Retrieved Matter . | . . . . . . . . . . . . . . . . . . . . . . . . . . . . . . . . Parts Self-Destructed 33 | . . . . . . . . . 11 . 1 . 10 5 . . 2 . . 4 . . . . . . . . . . . Prevented 2 | . . . . . . . . . 1 . . . . . . . 1 . . . . . . . . . . . . . . Parts Restored . | . . . . . . . . . . . . . . . . . . . . . . . . . . . . . . . . Kills | -11 -10 -9 -9 -9 -8 -8 -8 -7 -7 -7 -6 -6 -6 -6 -6 -6 -5 -5 -5 -5 -5 -4 -4 -4 -4 -4 -4 -3 -3 -2 -1 ------- Run | Yrd Mat Mat Min Exi Min Mat Gar Fac Low Dat Pro Fac Low Low Zio Dee Pro Fac Upp Upp War Pro Fac Ext Cet Arc Hub Res Qua Res Acc Combat Hostiles Destroyed 167 | . 9 28 2 . 2 35 21 7 . . . 6 5 4 . . 1 18 . . . . 5 14 1 . 1 1 . . 7 Melee 5 | . . 1 . . . . . . . . . 1 1 . . . . 1 . . . . . 1 . . . . . . . Guns 72 | . 9 24 1 . . 16 13 . . . . 2 1 . . . . 1 . . . . . 3 1 . . . . . 1 Cannons 13 | . . 1 1 . 2 8 . . . . . . . . . . . 1 . . . . . . . . . . . . . AOE 64 | . . . . . . 10 8 7 . . . 2 3 4 . . . 15 . . . . 4 6 . . . 1 . . 4 Classes Destroyed 18 | 1 5 5 . . . 1 2 . . . 1 . 1 . . . . . . . . . . 2 . . . . . . . Worker 28 | . . 3 . . 1 . . 5 . . . 1 . . . . . 5 . . . . 2 1 . . . 4 . . 6 Builder 15 | . 1 . . . . 3 . 1 . . . . . . . . . 5 . . . . 2 1 . . . 2 . . . Tunneler 15 | 3 . . . . . . . 2 . . . 1 . . . . . 5 . . . . 1 1 . . . 2 . . . Hauler 34 | . 1 6 . . . 5 . 8 . . . 1 . . . . . 2 . . . . 3 . . . 3 4 . 1 . Recycler 16 | . . 2 . . . 2 . 5 . . . . . . . . . 2 . . . . . 2 . . . . . 3 . Minesweeper 2 | . . . . . . . . . . . 1 . . . . . 1 . . . . . . . . . . . . . . Mechanic 1 | . . 1 . . . . . . . . . . . . . . . . . . . . . . . . . . . . . Operator 16 | . 1 2 . . . . . . . . . 3 . . . . . . . . . . . 1 . 9 . . . . . Watcher 7 | . . 1 . . . . . 1 . . . 1 . . . . . . . . . . 2 1 . . 1 . . . . Swarmer 53 | . 6 3 2 . . 9 4 4 . . . . 5 4 . . . 9 . . . . 4 3 . . . . . . . Cutter 2 | . . . . . . . 2 . . . . . . . . . . . . . . . . . . . . . . . . Grunt 72 | . 3 20 . . 2 15 11 3 . . . 3 . . . . 1 6 . . . . 1 5 . . 1 1 . . . Sentry 21 | . . 5 . . . 9 2 . . . . 2 . . . . . . . . . . . 3 . . . . . . . Specialist 2 | . . . . . . 2 . . . . . . . . . . . . . . . . . . . . . . . . . Hunter 3 | . . . . . . . . . . . . . . . . . . . . . . . . 1 . . . . . . 2 Programmer 9 | . . . . . . . 2 . . . . 1 . . . . . 3 . . . . . . . . . . . . 3 Behemoth 4 | . . . . . . . . . . . . . . . . . . . . . . . . 2 . . . . . . 2 Cetus Guard 1 | . . . . . . . . . . . . . . . . . . . . . . . . . 1 . . . . . . Decomposer 1 | . . . . . . . . . . . . . . . . . . . 1 . . . . . . . . . . . . Packrat 6 | . . . . . . . . . . . 2 . 2 . . . . . 1 . . 1 . . . . . . . . . Samaritan 7 | . . . . . . . . . . . . . 4 . . . . . 3 . . . . . . . . . . . . Best Kill Streak 11 | 2 5 9 1 . 2 7 6 8 . . 1 4 5 4 . . 1 11 . . . . 7 4 1 6 1 5 . 3 7 Combat Bots Only 7 | . 5 5 1 . 2 5 6 4 . . . 4 5 4 . . 1 7 . . . . 4 4 1 . 1 1 . . 4 Max Kills in Single Turn 5 | 1 1 2 1 . 1 3 2 3 . . 1 1 2 4 . . 1 5 1 . . 1 3 3 1 1 1 2 . 1 2 Gunslinging 1 | . . 1 . . . . . . . . . . . . . . . . . . . . . . . . . . . . . Exploded 5 | . . . . . . 2 2 2 . . . 1 2 4 . . . 5 . . . . 3 3 . . . 1 . . 2 Melee 1 | . . 1 . . . . . . . . . 1 1 . . . . 1 . . . . . 1 . . . . . . . Uniques/NPCs Destroyed 1 | . . . . . . . . . . . . . . . . . . . . . . . . . 1 . . . . . . A7 (-4/Cetus) Combat | -11 -10 -9 -9 -9 -8 -8 -8 -7 -7 -7 -6 -6 -6 -6 -6 -6 -5 -5 -5 -5 -5 -4 -4 -4 -4 -4 -4 -3 -3 -2 -1 -------- Run | Yrd Mat Mat Min Exi Min Mat Gar Fac Low Dat Pro Fac Low Low Zio Dee Pro Fac Upp Upp War Pro Fac Ext Cet Arc Hub Res Qua Res Acc Hostile Shots Fired 1429 | . 67 151 7 . 16 191 100 120 8 . . 152 24 . . 12 5 90 8 . . 20 100 93 26 . 102 34 16 3 84 Missed 565 | . 20 40 . . 1 46 37 62 4 . . 75 9 . . 6 . 52 6 . . 11 55 41 12 . 34 14 9 1 30 Hits 864 | . 47 111 7 . 15 145 63 58 4 . . 77 15 . . 6 5 38 2 . . 9 45 52 14 . 68 20 7 2 54 Melee 7 | . . . . . . . 5 . 2 . . . . . . . . . . . . . . . . . . . . . . Projectile 857 | . 47 111 7 . 15 145 58 58 2 . . 77 15 . . 6 5 38 2 . . 9 45 52 14 . 68 20 7 2 54 AOE 3 | . . . . . . . 2 . . . . . . . . . . . . . . . . . . . 1 . . . . Critical Strikes 37 | . 1 5 . . 1 6 6 2 . . . . . . . . . 1 . . . . . 3 4 . 2 1 . . 5 Actively Blocked 12 | . . . . . . . . . . . . . . . . . . . . . . . . 3 4 . . . . . 5 Damage Taken 14377 | . 447 1384 54 . 267 2165 1119 707 46 . . 748 241 12 . 149 97 697 27 63 . 160 822 1437 392 79 1308 430 352 68 1106 Core 2219 | . 49 189 . . . 290 129 128 34 . . 169 43 8 . 20 40 166 . 14 . 29 152 342 24 27 174 56 46 34 56 Absorbed by Shields 200 | . . . . . . . 25 63 . . . . . . . . . . . . . . . 11 101 . . . . . . Redirected to Shielding 460 | . . . . . . . . . . . . 63 15 3 . 26 . 18 . . . . 179 156 . . . . . . . Regen/Repaired (Parts) 1018 | . . 83 . . . . . . . . . 83 16 . . 2 103 40 . . 11 30 36 171 100 34 4 125 29 83 68 Core Remaining (%) 72 | 100 80 . . . 52 . 23 . . . 76 . . . . . 67 . . . . 79 . . . . 37 . 92 97 96 Volleys Fired 516 | 11 39 86 5 . 12 95 48 14 . . . 21 9 1 1 . . 52 . 3 . 4 14 34 8 . 2 7 5 14 31 Largest 2 | 2 2 2 2 . 2 2 2 1 . . . 2 2 1 1 . . 2 . 1 . 1 1 2 2 . 1 1 1 1 2 Hottest 150 | 40 130 122 91 . 91 150 75 36 . . . 90 70 50 105 . . 105 . 35 . 35 43 68 66 . 35 43 105 10 120 Shots Fired 824 | 20 77 168 10 . 20 172 83 14 . . . 22 13 1 1 . . 63 . 3 . 4 15 57 17 . 2 7 5 14 36 Gun 569 | 20 70 158 5 . 8 104 76 2 . . . 14 10 . . . . 28 . . . . . 50 15 . . . . . 9 Cannon 166 | . 6 10 5 . 12 58 . . . . . 4 1 . 1 . . 21 . 3 . 4 13 1 . . 2 3 5 . 17 Launcher 74 | . . . . . . 10 7 12 . . . 4 2 1 . . . 14 . . . . 2 6 2 . . 4 . . 10 Special 15 | . 1 . . . . . . . . . . . . . . . . . . . . . . . . . . . . 14 . Kinetic 354 | 20 74 38 5 . 8 17 64 2 . . . 14 10 . . . . 28 . . . . . 50 15 . . . . . 9 Thermal 281 | . 3 82 5 . 12 104 . . . . . 4 1 . 1 . . 21 . 3 . 4 13 1 . . 2 3 5 . 17 Explosive 74 | . . . . . . 10 7 12 . . . 4 2 1 . . . 14 . . . . 2 6 2 . . 4 . . 10 Electromagnetic 101 | . . 48 . . . 41 12 . . . . . . . . . . . . . . . . . . . . . . . . Robot Hit Streak 19 | 6 6 10 2 . 8 19 16 4 . . . 8 9 . . . . 3 . . . . 2 5 5 . . 8 . 5 4 Robot Miss Streak 5 | 3 5 5 2 . 2 4 5 2 . . . 1 3 . . . . 4 . . . . . 3 3 . . 1 . 1 3 Penetration Max 1 | . . . . . . . . . . . . . . . . . . . . . . . . 1 1 . . . . . . Secondary Targets 14 | . 3 4 . . . 3 4 . . . . . . . . . . . . . . . . . . . . . . . . Max Gunslinging Chain 1 | . 1 1 . . . 1 1 . . . . . . . . . . . . . . . . . . . . . . . . Shots Hit Robots 691 | 12 38 125 5 . 12 137 50 40 1 . 3 31 12 . . 1 5 59 7 1 . 1 15 51 11 14 10 20 . 14 16 Core Hits 426 | 5 21 63 2 . 6 71 47 37 . . 3 15 10 7 . . 1 48 3 1 . . 10 33 8 4 2 14 . 2 13 Critical Kills 9 | . . . . . . 2 . . . . . 1 . . . . . 4 . . . . 1 . . . . 1 . . . Critical Parts Destroyed 36 | . . 2 . . . . . . . . . 8 3 . . . . 7 . . . 1 4 6 . . 2 2 . . 1 Critical Strikes 73 | . . 8 . . . 8 . 5 . . . 11 3 . . . . 12 1 . . 1 5 7 1 3 3 4 . . 1 Burn 12 | . . 6 . . . 6 . . . . . . . . . . . . . . . . . . . . . . . . . Meltdown 2 | . . . . . . 2 . . . . . . . . . . . . . . . . . . . . . . . . . Destroy 9 | . . . . . . . . . . . . 1 . . . . . 6 . . . . . 1 . . . . . . 1 Smash 36 | . . 2 . . . . . . . . . 10 3 . . . . 5 . . . 1 5 5 . . 2 3 . . . Sever 5 | . . . . . . . . 5 . . . . . . . . . . . . . . . . . . . . . . . Impale 9 | . . . . . . . . . . . . . . . . . . 1 1 . . . . 1 1 3 1 1 . . . Melee Attacks 475 | . . 16 . . . 3 3 90 4 . 3 44 16 2 15 1 18 64 9 2 . 5 38 27 6 18 24 34 5 13 15 Impact 250 | . . 16 . . . 1 . . . . . 38 16 2 15 1 11 41 . . . 5 34 13 1 3 15 20 5 13 . Slashing 120 | . . . . . . 2 3 90 4 . 3 6 . . . . . . . . . . . . . . . . . . 12 Piercing 105 | . . . . . . . . . . . . . . . . . 7 23 9 2 . . 4 14 5 15 9 14 . . 3 Sneak Attacks 106 | . . . . . . . . 18 . . 3 4 6 . . . 1 19 7 . . 1 7 7 2 10 4 11 . 4 2 Combat Hostiles 3 | . . . . . . . . . . . . . . . . . . . . . . . . 3 . . . . . . . Follow-up Attacks 7 | . . . . . . . . . . . . . . . . . . . . . . . . 1 . 3 3 . . . . Damage Inflicted 33705 | 143 415 2381 87 . 219 4020 1739 3457 37 . 212 1467 1104 160 . 155 289 4651 575 95 . 100 1712 3326 479 1232 728 2377 . 479 2066 Guns 7057 | 143 385 1974 26 . 78 1588 1045 . . . . 203 30 . . . . 129 . . . . . 926 252 . . . . . 278 Cannons 1573 | . 30 80 61 . 141 1063 . . . . . . . . . . . 198 . . . . . . . . . . . . . Explosions 9899 | . . 21 . . . 1369 694 1169 . . . 238 204 160 . . . 1764 . . . . 460 1211 126 . . 899 . . 1584 Melee 15168 | . . 298 . . . . . 2288 37 . 212 1026 870 . . 155 289 2560 575 95 . 100 1252 1189 101 1232 728 1478 . 479 204 Ramming 8 | . . 8 . . . . . . . . . . . . . . . . . . . . . . . . . . . . . Kinetic 3953 | 143 405 431 26 . 78 227 825 . . . . 203 30 . . . . 129 . . . . . 926 252 . . . . . 278 Thermal 3625 | . 10 1041 61 . 141 2046 128 . . . . . . . . . . 198 . . . . . . . . . . . . . Explosive 9507 | . . . . . . 1126 566 1169 . . . 238 204 160 . . . 1764 . . . . 460 1211 126 . . 899 . . 1584 Electromagnetic 1444 | . . 603 . . . 621 220 . . . . . . . . . . . . . . . . . . . . . . . . Impact 8465 | . . 298 . . . . . . . . . 933 870 . . 155 142 1656 . . . 100 1198 868 . 136 574 1056 . 479 . Slashing 2834 | . . . . . . . . 2288 37 . 212 93 . . . . . . . . . . . . . . . . . . 204 Piercing 3869 | . . . . . . . . . . . . . . . . . 147 904 575 95 . . 54 321 101 1096 154 422 . . . Highest Corruption 20 | . . . . . . . 8 1 . . . 1 . . . . . 1 1 1 1 . 6 6 20 20 3 . 3 . 4 Average Corruption 5 | . . . . . . . 4 1 . . . 1 . . . . . 1 1 1 1 . 4 6 17 12 2 . 1 . 1 Corruption Purged 21 | . . . . . . . . 2 . . . 1 . . . . . . . . . . . . . 18 . . . . . Corruption Blocked . | . . . . . . . . . . . . . . . . . . . . . . . . . . . . . . . . Effects 110 | . . . . . . . 29 2 . . . . . . . . . 3 2 . . . 11 27 17 11 8 . . . . Message Errors 24 | . . . . . . . 7 . . . . . . . . . . 1 . . . . 1 6 7 . 2 . . . . Matter Fused 23 | . . . . . . . 6 1 . . . . . . . . . 1 . . . . 3 5 3 3 1 . . . . Heat Flow Errors 14 | . . . . . . . 6 . . . . . . . . . . . . . . . 1 3 1 2 1 . . . . Energy Discharges 19 | . . . . . . . 4 1 . . . . . . . . . . 1 . . . 2 4 1 4 2 . . . . Parts Rejected 1 | . . . . . . . . . . . . . . . . . . . . . . . . . . . 1 . . . . Parts Fused 1 | . . . . . . . . . . . . . . . . . . . . . . . . 1 . . . . . . . Data Loss (minor) 11 | . . . . . . . 4 . . . . . . . . . . . . . . . 2 2 . 2 1 . . . . Data Loss (major) 5 | . . . . . . . . . . . . . . . . . . 1 . . . . 1 2 1 . . . . . . Misfires 8 | . . . . . . . 2 . . . . . . . . . . . . . . . 1 3 2 . . . . . . Alerts 2 | . . . . . . . . . . . . . . . . . . . 1 . . . . 1 . . . . . . . Misdirections 2 | . . . . . . . . . . . . . . . . . . . . . . . . . 2 . . . . . . Overload Shots 3 | . . . . . . . . . . . . . . . 1 . . 1 . . . . . . . . . . 1 . . Overflow Damage 6258 | . . 68 . . . 20 16 233 . . . 611 624 . . 151 47 791 218 . . 100 745 719 . 512 467 514 . 202 220 Projectiles 15 | . . 5 . . . 10 . . . . . . . . . . . . . . . . . . . . . . . . . Explosions 331 | . . . . . . 10 16 . . . . . . . . . . 50 . . . . 63 40 . . . . . . 152 Melee 5912 | . . 63 . . . . . 233 . . . 611 624 . . 151 47 741 218 . . 100 682 679 . 512 467 514 . 202 68 Knockbacks 25 | . 2 2 . . . . . . . . . 1 1 . . . 2 6 . . . . 3 3 . . 3 . . 2 . Impact 21 | . . 1 . . . . . . . . . 1 1 . . . 2 6 . . . . 3 3 . . 2 . . 2 . Kinetic 2 | . 2 . . . . . . . . . . . . . . . . . . . . . . . . . . . . . . Secondary 2 | . . 1 . . . . . . . . . . . . . . . . . . . . . . . . 1 . . . . Self-Inflicted Damage 171 | . . 18 . . . 102 . . . . . . . 14 . . . 24 . . . . . . . . . 13 . . . Shots 7 | . . 1 . . . 3 . . . . . . . 1 . . . 1 . . . . . . . . . 1 . . . Rammed 1 | . . 1 . . . . . . . . . . . . . . . . . . . . . . . . . . . . . Targets Rammed 1 | . . 1 . . . . . . . . . . . . . . . . . . . . . . . . . . . . . Kicked . | . . . . . . . . . . . . . . . . . . . . . . . . . . . . . . . . Crushed . | . . . . . . . . . . . . . . . . . . . . . . . . . . . . . . . . Highest Temperature 446 | . 69 446 . . 152 129 210 145 66 . . 139 165 1 44 288 . 191 . 245 . 8 98 261 113 240 128 28 2 296 222 Average Temperature 70 | . 16 107 . . 59 44 90 33 31 . . 17 73 1 26 167 . 53 . 122 . 8 24 73 32 85 54 13 2 91 37 Received Heat Transfer 3372 | . 108 723 . . 153 900 242 328 9 . . 228 18 . . 36 45 72 . . . 9 69 72 9 9 192 132 18 . . Effects 10 | . . 6 . . . . . . . . . . . . . 2 . . . . . . . 1 . . . . . 1 . Shutdowns 1 | . . 1 . . . . . . . . . . . . . . . . . . . . . . . . . . . . . Energy Bleed 3 | . . . . . . . . . . . . . . . . 1 . . . . . . . 1 . . . . . 1 . Interference 5 | . . 4 . . . . . . . . . . . . . 1 . . . . . . . . . . . . . . . Damage (minor) 1 | . . 1 . . . . . . . . . . . . . . . . . . . . . . . . . . . . . Siege Activations . | . . . . . . . . . . . . . . . . . . . . . . . . . . . . . . . . Martial Activations . | . . . . . . . . . . . . . . . . . . . . . . . . . . . . . . . . Shielding Activations . | . . . . . . . . . . . . . . . . . . . . . . . . . . . . . . . . Robots Disrupted . | . . . . . . . . . . . . . . . . . . . . . . . . . . . . . . . . Combat Hostiles . | . . . . . . . . . . . . . . . . . . . . . . . . . . . . . . . . Robots Corrupted 31 | . . 2 . . . . . . . . . 3 2 . . . 1 4 . . . . 5 6 . . 4 2 . 2 . Combat Hostiles 7 | . . 1 . . . . . . . . . 1 . . . . 1 . . . . . 1 2 . . 1 . . . . Parts Fried 65 | . . 5 . . . 3 . . . . . 9 4 . . . . 7 . . . . 7 19 . 2 3 2 . 4 . Impact Corruptions 117 | . . 3 . . . . . . . . . 14 26 . . 1 1 17 . . . 4 17 16 . 2 6 5 . 5 . Robots Melted 3 | . . 1 . . . 2 . . . . . . . . . . . . . . . . . . . . . . . . . Combat Hostiles 2 | . . 1 . . . 1 . . . . . . . . . . . . . . . . . . . . . . . . . Parts Melted 15 | . . 4 . . 1 8 . . . . . . . . . . . 2 . . . . . . . . . . . . . Heat Transferred 6838 | . 10 2381 111 . 259 3754 73 . . . . . . . . . . 250 . . . . . . . . . . . . . Parts Sabotaged . | . . . . . . . . . . . . . . . . . . . . . . . . . . . . . . . . Parts Stolen 1 | . . . . . . . . . 1 . . . . . . . . . . . . . . . . . . . . . . Parts Stripped . | . . . . . . . . . . . . . . . . . . . . . . . . . . . . . . . . Power Chain Reactions 6 | . . 1 . . . 4 1 . . . . . . . . . . . . . . . . . . . . . . . . Alert | -11 -10 -9 -9 -9 -8 -8 -8 -7 -7 -7 -6 -6 -6 -6 -6 -6 -5 -5 -5 -5 -5 -4 -4 -4 -4 -4 -4 -3 -3 -2 -1 ------- Run | Yrd Mat Mat Min Exi Min Mat Gar Fac Low Dat Pro Fac Low Low Zio Dee Pro Fac Upp Upp War Pro Fac Ext Cet Arc Hub Res Qua Res Acc Maximum Alert Level 4 | . . 2 1 . . 2 4 4 . . . . . . . . . 3 . . . . 2 3 2 2 3 2 1 . . Low Security (%) 50 | 100 100 35 92 . 100 77 . . . . . 100 . . . . . 60 . . . . 73 . . . 3 . . 100 100 Level 1 22 | . . 52 7 . . 12 . . . . . . . . . . . 2 . . . . 12 59 24 85 52 77 100 . . Level 2 14 | . . 12 . . . 10 30 41 . . . . . . . . . 22 . . . . 14 16 75 14 27 22 . . . Level 3 10 | . . . . . . . 52 42 . . . . . . . . . 14 . . . . . 24 . . 16 . . . . Level 4 2 | . . . . . . . 17 15 . . . . . . . . . . . . . . . . . . . . . . . Level 5 . | . . . . . . . . . . . . . . . . . . . . . . . . . . . . . . . . High Security . | . . . . . . . . . . . . . . . . . . . . . . . . . . . . . . . . Max Security . | . . . . . . . . . . . . . . . . . . . . . . . . . . . . . . . . Peak Influence 1304 | 5 122 451 204 . 45 659 1304 1227 . . . 139 . . . . . 861 . . . . 575 1068 582 408 907 495 348 195 177 Initial 684 | . . 1 169 . . 13 426 684 . . . . . . . . . . . . . . 81 249 422 224 111 465 206 195 . Average 292 | 1 24 237 171 . 3 130 842 813 . . . 44 . . . . . 302 . . . . 207 487 443 352 449 345 259 59 65 Influence Increases 12325 | 15 297 937 95 . 70 1188 938 1095 . . 5 427 130 90 . . 25 1208 345 50 . 210 814 1474 390 284 1086 442 282 79 349 Destroy 0b10 Robot/C 4120 | . 180 560 40 . 40 700 420 140 . . . 120 100 80 . . 20 360 . . . . 100 560 160 80 300 20 . . 140 Destroy 0b10 Robot/NC 730 | 15 15 75 . . 5 50 5 110 . . 5 35 5 . . . 5 95 . 5 . . 50 40 10 45 50 60 . 20 30 Destroy Leader 734 | . 42 144 10 . 10 190 10 38 . . . 34 10 10 . . . 54 . . . . 20 54 . . 68 18 . 2 20 Allied During Kill 744 | . . . . . . . . . . . . . . . . . . . . . . . . 253 119 125 247 . . . . Successful Hack 457 | . 13 28 . . . 22 . 62 . . . 31 . . . . . 58 . . . . 63 17 12 . 10 64 77 . . Disable Machine 525 | . 30 30 . . . 105 . . . . . 30 . . . . . 45 . . . . 45 15 15 30 105 . 15 15 45 Anti-Garrison Action 450 | . . . . . . . 450 . . . . . . . . . . . . . . . . . . . . . . . . Destroy Structure 1025 | . 2 10 . . . 61 23 85 . . . 42 . . . . . 206 . . . . 116 100 74 4 66 100 10 27 99 Partial Spotted 555 | . . . . . . 15 15 165 . . . 45 . . . . . 75 . . . . 45 120 . . 15 30 15 . 15 Lose Combat Pursuer 2985 | . 15 90 45 . 15 45 15 495 . . . 90 15 . . . . 315 345 45 . 210 375 315 . . 225 150 165 15 . Influence Decreases 12180 | 15 292 507 356 174 35 567 290 1266 520 613 5 288 179 88 92 . 25 347 400 214 642 80 433 1230 583 528 517 962 301 427 204 Entered New Map 5552 | . . 4 266 174 . 22 230 620 420 613 . . 52 18 92 . . . 320 154 642 . 49 262 333 338 207 422 161 153 . Time Decay 4747 | 15 268 453 90 . 25 485 . 326 90 . 5 248 120 70 . . 25 327 80 50 . 80 254 398 150 160 150 350 130 274 124 Search Patrol Dispatched 200 | . . . . . . . . . . . . . . . . . . . . . . . 100 100 . . . . . . . Lost Part 651 | . 24 50 . . 10 60 60 20 10 . . 40 7 . . . . 20 . 10 . . 30 50 20 10 100 40 10 . 80 Lost Ally 280 | . . . . . . . . . . . . . . . . . . . . . . . . 120 80 20 60 . . . . Purge Threat 750 | . . . . . . . . 300 . . . . . . . . . . . . . . . 300 . . . 150 . . . Squads Dispatched 81 | . 1 5 . . . 5 . 13 . . . 10 . . . . . 13 . . . . 7 3 . . 6 14 1 . 3 Investigation 31 | . . 3 . . . 1 . 5 . . . 7 . . . . . 6 . . . . 2 1 . . 1 5 . . . Extermination 10 | . . . . . . . . 2 . . . 2 . . . . . 2 . . . . 1 . . . 1 . 1 . 1 Reinforcement 35 | . 1 2 . . . 1 . 5 . . . 1 . . . . . 4 . . . . 4 2 . . 4 9 . . 2 Assault 1 | . . . . . . . . 1 . . . . . . . . . . . . . . . . . . . . . . . Garrison 4 | . . . . . . 3 . . . . . . . . . . . 1 . . . . . . . . . . . . . Intercept . | . . . . . . . . . . . . . . . . . . . . . . . . . . . . . . . . Searches Triggered 2 | . . . . . . . . . . . . . . . . . . . . . . . 1 1 . . . . . . . Unchained Authorized 1 | . . . . . . . . . . . . . . . . . . . . . . . . . . . . . . . 1 Data Miner Redirects 2 | . . . . . . . . . . . . . . . . . . . . . . . . 1 . . 1 . . . . Construction Impeded 4 | . . . . . . . . . . . . . . . . . . 1 . . . . . 1 . . 1 . . . 1 Haulers Reinforced 13 | . . . . . . . . 5 . . . . . . . . . 2 . . . . . . . . 1 5 . . . Active Scanning Responses . | . . . . . . . . . . . . . . . . . . . . . . . . . . . . . . . . Cargo Convoy Interrupts . | . . . . . . . . . . . . . . . . . . . . . . . . . . . . . . . . Stealth | -11 -10 -9 -9 -9 -8 -8 -8 -7 -7 -7 -6 -6 -6 -6 -6 -6 -5 -5 -5 -5 -5 -4 -4 -4 -4 -4 -4 -3 -3 -2 -1 --------- Run | Yrd Mat Mat Min Exi Min Mat Gar Fac Low Dat Pro Fac Low Low Zio Dee Pro Fac Upp Upp War Pro Fac Ext Cet Arc Hub Res Qua Res Acc Distress Signals 42 | . . 3 . . . 3 . 2 1 . . . . . . . . 3 . . . . 7 1 2 . 2 4 3 10 1 Communications Jammed . | . . . . . . . . . . . . . . . . . . . . . . . . . . . . . . . . Distress Signals . | . . . . . . . . . . . . . . . . . . . . . . . . . . . . . . . . Times Spotted 546 | . 18 42 5 . 2 49 17 53 3 . . 29 9 . . 12 1 57 22 5 . 9 51 48 10 6 37 25 17 9 10 Peak Tracking Total 16 | . 5 5 3 . 3 5 5 14 2 . . 5 5 . . 9 1 10 14 5 . 13 16 7 5 2 12 8 10 5 4 Tactical Retreats 84 | . 1 4 2 . 1 2 1 10 1 . . 3 4 . . 1 . 11 4 1 . 2 8 14 . . 6 3 4 1 . ECM-based Alert Blocks 1 | . . . . . . . . . . . . 1 . . . . . . . . . . . . . . . . . . . Traps | -11 -10 -9 -9 -9 -8 -8 -8 -7 -7 -7 -6 -6 -6 -6 -6 -6 -5 -5 -5 -5 -5 -4 -4 -4 -4 -4 -4 -3 -3 -2 -1 ------- Run | Yrd Mat Mat Min Exi Min Mat Gar Fac Low Dat Pro Fac Low Low Zio Dee Pro Fac Upp Upp War Pro Fac Ext Cet Arc Hub Res Qua Res Acc Traps Triggered 20 | . 1 . . . . . 11 2 . . . 1 . . . . . 1 . 1 . . . . . . . . 2 . 1 Indirectly . | . . . . . . . . . . . . . . . . . . . . . . . . . . . . . . . . Trap Hack Attempts . | . . . . . . . . . . . . . . . . . . . . . . . . . . . . . . . . Triggered . | . . . . . . . . . . . . . . . . . . . . . . . . . . . . . . . . Disarmed 6 | . . . . . . . . . . . . . . . . . . . . . . . . 6 . . . . . . . Reprogrammed 2 | . . . . . . . . . . . . . . . . . . . . . . . . . . . . . 2 . . Reused . | . . . . . . . . . . . . . . . . . . . . . . . . . . . . . . . . Traps Extracted . | . . . . . . . . . . . . . . . . . . . . . . . . . . . . . . . . Installed 1 | . . . . . . . 1 . . . . . . . . . . . . . . . . . . . . . . . . Triggered . | . . . . . . . . . . . . . . . . . . . . . . . . . . . . . . . . Most Traps Carried 4 | . . . . . . . 4 4 4 4 4 4 . . . . . . . . . . . . . . . . . . . Machines | -11 -10 -9 -9 -9 -8 -8 -8 -7 -7 -7 -6 -6 -6 -6 -6 -6 -5 -5 -5 -5 -5 -4 -4 -4 -4 -4 -4 -3 -3 -2 -1 ---------- Run | Yrd Mat Mat Min Exi Min Mat Gar Fac Low Dat Pro Fac Low Low Zio Dee Pro Fac Upp Upp War Pro Fac Ext Cet Arc Hub Res Qua Res Acc Machines Disabled 45 | . 2 2 . . . 7 6 . 1 . . 2 . . 3 . . 3 . . . . 3 1 1 2 7 . 1 1 3 Max in Single Turn 2 | . 1 1 . . . 2 2 . 1 . . 1 . . 1 . . 1 . . . . 1 . 1 . 1 . 1 1 1 Garrison Access 9 | . . . . . . . . 1 . . . . . . . . . . . . . . 2 . . . . 2 . 3 1 Garrison Relay 6 | . . . . . . . 6 . . . . . . . . . . . . . . . . . . . . . . . . Network Hub 1 | . . . . . . . . . . . . . . . . . . . . . . . . . . . 1 . . . . Energy Cycler 1 | . . . . . . . . . . . . . . . . . . . . . . . . 1 . . . . . . . Machines Repaired . | . . . . . . . . . . . . . . . . . . . . . . . . . . . . . . . . Machines Dismantled 1 | . . . . . . . . . . . . . . . . . . . . . . . . . . . 1 . . . . Machines Sabotaged . | . . . . . . . . . . . . . . . . . . . . . . . . . . . . . . . . Overloaded Fab Kills . | . . . . . . . . . . . . . . . . . . . . . . . . . . . . . . . . Hacking | -11 -10 -9 -9 -9 -8 -8 -8 -7 -7 -7 -6 -6 -6 -6 -6 -6 -5 -5 -5 -5 -5 -4 -4 -4 -4 -4 -4 -3 -3 -2 -1 --------- Run | Yrd Mat Mat Min Exi Min Mat Gar Fac Low Dat Pro Fac Low Low Zio Dee Pro Fac Upp Upp War Pro Fac Ext Cet Arc Hub Res Qua Res Acc Machines Accessed 129 | . 6 9 . . 1 7 2 13 . 3 . 13 . 1 . . 1 12 1 1 2 1 16 6 2 1 4 14 6 3 4 Terminals 79 | . 5 7 . . 1 4 2 10 . . . 8 . . . . 1 6 1 1 . 1 6 6 2 . 4 6 5 . 3 Fabricators 13 | . . . . . . . . 1 . . . 3 . . . . . 1 . . . . 4 . . . . 4 . . . Repair Stations 4 | . . 1 . . . . . . . . . . . . . . . 1 . . . . 1 . . . . 1 . . . Recycling Units 4 | . 1 . . . . . . . . . . 1 . . . . . 1 . . . . 1 . . . . . . . . Scanalyzers 11 | . . 1 . . . 2 . 1 . . . 1 . . . . . 2 . . . . 2 . . . . 1 1 . . Garrison Access 11 | . . . . . . 1 . 1 . . . . . . . . . 1 . . . . 2 . . . . 2 . 3 1 Total Hacks 419 | . 12 23 . . 2 16 4 43 . 23 . 37 . 1 . . 1 32 6 1 7 5 40 24 5 4 24 63 26 8 12 Successful 231 | . 5 8 . . . 8 . 19 . 23 . 23 . 1 . . 1 17 6 1 7 5 11 15 5 4 17 33 15 3 4 Failed 187 | . 7 15 . . 2 8 4 24 . . . 14 . . . . . 15 . . . . 29 9 . . 7 29 11 5 8 Catastrophic 43 | . 3 3 . . . 1 1 5 . . . 2 . . . . . 3 . . . . 8 5 . . 2 5 2 1 2 Database Lockouts 1 | . . . . . . . . . . . . . . . . . . . . . . . . . . . . 1 . . . Manual 131 | . 7 3 . . 2 7 . 20 . . . 11 . . 1 . . 4 . . 1 . 15 5 1 1 13 22 18 . . Terminals 275 | . 9 14 . . 2 9 4 36 . . . 21 . . . . 1 16 6 1 . 5 19 24 5 . 24 45 23 . 11 Fabricators 36 | . . . . . . . . 3 . . . 11 . . . . . 2 . . . . 9 . . . . 11 . . . Repair Stations 10 | . . 2 . . . . . . . . . . . . . . . 2 . . . . 3 . . . . 3 . . . Recycling Units 9 | . 3 . . . . . . . . . . 2 . . . . . 2 . . . . 2 . . . . . . . . Scanalyzers 35 | . . 7 . . . 6 . 2 . . . 3 . . . . . 8 . . . . 4 . . . . 2 3 . . Garrison Access 19 | . . . . . . 1 . 2 . . . . . . . . . 2 . . . . 3 . . . . 2 . 8 1 Terminal Hacks 159 | . 4 4 . . . 2 . 15 . 23 . 10 . 1 . . 1 5 6 1 7 5 2 15 5 4 16 20 10 . 3 Record 42 | . . . . . . . . . . 11 . . . . . . 1 . 6 1 . 5 1 6 5 4 1 . 1 . . Part Schematic 15 | . . . . . . . . 3 . 9 . . . . . . . . . . . . . 2 . . . 1 . . . Prototype ID Bank 10 | . . . . . . . . . . 3 . . . . . . . . . . 6 . . . . . . 1 . . . Open Door 4 | . . . . . . . . . . . . . . 1 . . . . . . 1 . . . . . . . 1 . 1 Level Access Points 2 | . . . . . . . . . . . . . . . . . . . . . . . . . . . 1 . 1 . . Branch Access Points 4 | . . . . . . . . 1 . . . 1 . . . . . 1 . . . . . . . . . 1 . . . Machine Index 1 | . . . . . . . . . . . . . . . . . . . . . . . . . . . . 1 . . . Terminal Index 8 | . 1 . . . . 1 . 1 . . . . . . . . . 1 . . . . . . . . 1 1 1 . 1 Fabricator Index 2 | . . . . . . . . . . . . . . . . . . . . . . . . . . . 1 1 . . . Garrison Index 1 | . . . . . . . . . . . . . . . . . . . . . . . . . . . 1 . . . . Alert Level 6 | . . . . . . . . 1 . . . . . . . . . . . . . . . 2 . . 1 2 . . . Unreport Threat 5 | . . . . . . . . 2 . . . . . . . . . . . . . . . 2 . . . 1 . . . Locate Traps 7 | . . . . . . . . 2 . . . 2 . . . . . 1 . . . . . . . . 1 . 1 . . Disarm Traps 1 | . . . . . . . . . . . . . . . . . . . . . . . . 1 . . . . . . . Reprogram Traps 1 | . . . . . . . . . . . . . . . . . . . . . . . . . . . . . 1 . . Security Status 4 | . . . . . . . . . . . . . . . . . . . . . . . . 1 . . 1 1 1 . . Patrol Status 3 | . . . . . . . . . . . . . . . . . . . . . . . . . . . 1 1 1 . . Transport Status 8 | . . 1 . . . . . 1 . . . 1 . . . . . 1 . . . . . . . . 1 3 . . . Recall Investigation 6 | . . . . . . . . 1 . . . 2 . . . . . . . . . . . 1 . . . 2 . . . Recall Extermination 1 | . . . . . . . . . . . . . . . . . . . . . . . . . . . 1 . . . . Hauler Manifests 9 | . 1 . . . . . . 2 . . . 1 . . . . . 1 . . . . 1 . . . 1 1 1 . . Registered Components 9 | . 1 1 . . . 1 . 1 . . . 1 . . . . . . . . . . . . . . 1 1 1 . 1 Registered Prototypes 3 | . . . . . . . . . . . . 1 . . . . . . . . . . . . . . 1 1 . . . Zone Layout 7 | . 1 2 . . . . . . . . . 1 . . . . . . . . . . . . . . 2 1 . . . Fabricator Hacks 23 | . . . . . . . . 2 . . . 8 . . . . . 2 . . . . 4 . . . . 7 . . . Network Status 3 | . . . . . . . . 1 . . . 1 . . . . . . . . . . 1 . . . . . . . . Load Schematic 11 | . . . . . . . . 1 . . . 4 . . . . . 1 . . . . 1 . . . . 4 . . . Build 9 | . . . . . . . . . . . . 3 . . . . . 1 . . . . 2 . . . . 3 . . . Repair Station Hacks 6 | . . 2 . . . . . . . . . . . . . . . 1 . . . . . . . . . 3 . . . Scan Component 2 | . . 1 . . . . . . . . . . . . . . . . . . . . . . . . . 1 . . . Repair 2 | . . 1 . . . . . . . . . . . . . . . . . . . . . . . . . 1 . . . Refit 2 | . . . . . . . . . . . . . . . . . . 1 . . . . . . . . . 1 . . . Recycling Unit Hacks 3 | . 1 . . . . . . . . . . 1 . . . . . 1 . . . . . . . . . . . . . Report Inventory 2 | . 1 . . . . . . . . . . 1 . . . . . . . . . . . . . . . . . . . Retrieve Matter 1 | . . . . . . . . . . . . . . . . . . 1 . . . . . . . . . . . . . Scanalyzer 19 | . . 2 . . . 4 . . . . . 2 . . . . . 8 . . . . 1 . . . . . 2 . . Insert Component 5 | . . 1 . . . 1 . . . . . 1 . . . . . 1 . . . . 1 . . . . . . . . Analyze 4 | . . 1 . . . 1 . . . . . 1 . . . . . 1 . . . . . . . . . . . . . Retrieve Study 10 | . . . . . . 2 . . . . . . . . . . . 6 . . . . . . . . . . 2 . . Garrison Access Hacks 10 | . . . . . . 1 . 1 . . . . . . . . . . . . . . 2 . . . . 2 . 3 1 Unlock Access 1 | . . . . . . 1 . . . . . . . . . . . . . . . . . . . . . . . . . Seal Access 9 | . . . . . . . . 1 . . . . . . . . . . . . . . 2 . . . . 2 . 3 1 Unauthorized Hacks 11 | . . . . . . 1 . 1 . . . 2 . . . . . . . . . . 2 . . . 1 1 3 . . Terminals 9 | . . . . . . 1 . 1 . . . 1 . . . . . . . . . . 2 . . . 1 1 2 . . Botnet 9 | . . . . . . 1 . 1 . . . 1 . . . . . . . . . . 2 . . . 1 1 2 . . Fabricators . | . . . . . . . . . . . . . . . . . . . . . . . . . . . . . . . . Repair Stations . | . . . . . . . . . . . . . . . . . . . . . . . . . . . . . . . . Recycling Units 1 | . . . . . . . . . . . . 1 . . . . . . . . . . . . . . . . . . . Reject 1 | . . . . . . . . . . . . 1 . . . . . . . . . . . . . . . . . . . Scanalyzers 1 | . . . . . . . . . . . . . . . . . . . . . . . . . . . . . 1 . . Researchers 1 | . . . . . . . . . . . . . . . . . . . . . . . . . . . . . 1 . . Garrison Access . | . . . . . . . . . . . . . . . . . . . . . . . . . . . . . . . . Data Cores Recovered 4 | . . 1 . . . . . . . . . 2 . . . . . . . . . . . . . . 1 . . . . Used 1 | . . . . . . . . . . . . 1 . . . . . . . . . . . . . . . . . . . Hacking Detections 97 | . 5 9 . . 1 5 2 12 . . . 13 . . . . . 12 1 . . . 11 5 1 . 4 10 3 . 3 Full Trace Events 32 | . . 3 . . . 2 1 5 . . . 7 . . . . . 6 1 . . . 2 . . . . 5 . . . Feedback Events 1 | . . . . . . . 1 . . . . . . . . . . . . . . . . . . . . . . . . Corruption 1 | . . . . . . . 1 . . . . . . . . . . . . . . . . . . . . . . . . Feedback Blocked 1 | . . . . . . . . . . . . . . . . . . . . . . . . . . . . 1 . . . Robot Schematics Acquired . | . . . . . . . . . . . . . . . . . . . . . . . . . . . . . . . . Robots Built . | . . . . . . . . . . . . . . . . . . . . . . . . . . . . . . . . Authchips . | . . . . . . . . . . . . . . . . . . . . . . . . . . . . . . . . Time . | . . . . . . . . . . . . . . . . . . . . . . . . . . . . . . . . Total Robot Build Rating . | . . . . . . . . . . . . . . . . . . . . . . . . . . . . . . . . Part Schematics Acquired 19 | . . 1 . . . 1 . 3 . 9 . 1 . . . . . 1 . . . . . 2 . . . 1 . . . Parts Built 11 | . . . . . . . . . . . . 4 . . . . . 1 . . . . 3 . . . . 3 . . . Authchips 1 | . . . . . . . . . . . . 1 . . . . . . . . . . . . . . . . . . . Time 785 | . . . . . . . . . . . . 281 . . . . . 76 . . . . 210 . . . . 218 . . . Total Part Build Rating 63 | . . . . . . . . . . . . 22 . . . . . 5 . . . . 19 . . . . 17 . . . Part Studies Acquired 10 | . . . . . . 2 . . . . . . . . . . . 6 . . . . . . . . . . 2 . . Parts Repaired 2 | . . 1 . . . . . . . . . . . . . . . . . . . . . . . . . 1 . . . Time 72 | . . 32 . . . . . . . . . . . . . . . . . . . . . . . . . 40 . . . Parts Recycled . | . . . . . . . . . . . . . . . . . . . . . . . . . . . . . . . . Recycled Matter . | . . . . . . . . . . . . . . . . . . . . . . . . . . . . . . . . Retrieved Matter . | . . . . . . . . . . . . . . . . . . . . . . . . . . . . . . . . Retrieved Components . | . . . . . . . . . . . . . . . . . . . . . . . . . . . . . . . . Parts Scanalyzed 5 | . . 1 . . . 1 . . . . . 1 . . . . . 1 . . . . 1 . . . . . . . . Part Schematics Acquired 4 | . . 1 . . . 1 . . . . . 1 . . . . . 1 . . . . . . . . . . . . . Parts Damaged 1 | . . . . . . . . . . . . . . . . . . . . . . . 1 . . . . . . . . Bothacking | -11 -10 -9 -9 -9 -8 -8 -8 -7 -7 -7 -6 -6 -6 -6 -6 -6 -5 -5 -5 -5 -5 -4 -4 -4 -4 -4 -4 -3 -3 -2 -1 ------------ Run | Yrd Mat Mat Min Exi Min Mat Gar Fac Low Dat Pro Fac Low Low Zio Dee Pro Fac Upp Upp War Pro Fac Ext Cet Arc Hub Res Qua Res Acc Used RIF Installer . | . . . . . . . . . . . . . . . . . . . . . . . . . . . . . . . . Robots Hacked 10 | . . . . . . . . . . . . . . . . . . . . . . . . . . . . . . 10 . Non-combat 2 | . . . . . . . . . . . . . . . . . . . . . . . . . . . . . . 2 . Combat 8 | . . . . . . . . . . . . . . . . . . . . . . . . . . . . . . 8 . Robot Hacks Applied 10 | . . . . . . . . . . . . . . . . . . . . . . . . . . . . . . 10 . parse_system 10 | . . . . . . . . . . . . . . . . . . . . . . . . . . . . . . 10 . Relay Couplers Released 22 | . . . . . . . 22 . . . . . . . . . . . . . . . . . . . . . . . . Machine Destruction 22 | . . . . . . . 22 . . . . . . . . . . . . . . . . . . . . . . . . Fabnet Peak Effective % . | . . . . . . . . . . . . . . . . . . . . . . . . . . . . . . . . Robots Rewired 9 | . . . . . . . . . . . . . . . . . . . . . . . . 9 . . . . . . . Allies Hacked . | . . . . . . . . . . . . . . . . . . . . . . . . . . . . . . . . Hacks Repelled 1 | . . . . . . . . . . . . . . . . . . . . . . . . . . . . . . 1 . Allies | -11 -10 -9 -9 -9 -8 -8 -8 -7 -7 -7 -6 -6 -6 -6 -6 -6 -5 -5 -5 -5 -5 -4 -4 -4 -4 -4 -4 -3 -3 -2 -1 -------- Run | Yrd Mat Mat Min Exi Min Mat Gar Fac Low Dat Pro Fac Low Low Zio Dee Pro Fac Upp Upp War Pro Fac Ext Cet Arc Hub Res Qua Res Acc Total Allies 22 | . . . . . . . . . . . . . . . . . . . . . . . . 17 5 . . . . . . Largest Group 10 | . . . . . . . . . . . . . . . . . . . . . . . . 10 7 6 5 . . . . Highest-Rated Group 656 | . . . . . . . . . . . . . . . . . . . . . . . . 519 656 515 480 . . . . Highest-Rated Ally 159 | . . . . . . . . . . . . . . . . . . . . . . . . 159 159 96 96 . . . . Initial Warlord ECA Mod 7 | . . . . . . . . 7 7 7 6 6 5 5 5 5 4 4 4 4 4 3 3 3 3 3 3 2 2 1 . Warlord Squad Rendezvous 1 | . . . . . . . . . . . . 1 . . . . . . . . . . . . . . . . . . . Dakka 1 | . . . . . . . . . . . . 1 . . . . . . . . . . . . . . . . . . . Total Orders 4 | . . . . . . . . . . . . . . . . . . . . . . . . . . . 4 . . . . STAY 2 | . . . . . . . . . . . . . . . . . . . . . . . . . . . 2 . . . . FOLLOW 2 | . . . . . . . . . . . . . . . . . . . . . . . . . . . 2 . . . . Ally Attacks 311 | . . . . . . . . . . . . . . . . . . . . . . . . 122 70 38 81 . . . . Total Damage 11039 | . . . . . . . . . . . . . . . . . . . . . . . . 4237 2425 1365 3012 . . . . Kills 55 | . . . . . . . . . . . . . . . . . . . . . . . . 19 10 4 22 . . . . Allies Corrupted . | . . . . . . . . . . . . . . . . . . . . . . . . . . . . . . . . Allies Melted . | . . . . . . . . . . . . . . . . . . . . . . . . . . . . . . . . Intel | -11 -10 -9 -9 -9 -8 -8 -8 -7 -7 -7 -6 -6 -6 -6 -6 -6 -5 -5 -5 -5 -5 -4 -4 -4 -4 -4 -4 -3 -3 -2 -1 ------- Run | Yrd Mat Mat Min Exi Min Mat Gar Fac Low Dat Pro Fac Low Low Zio Dee Pro Fac Upp Upp War Pro Fac Ext Cet Arc Hub Res Qua Res Acc Active Infowar (turns) 11869 | 30 1256 1308 . . . . . 596 190 19 168 693 248 155 304 79 546 815 162 106 142 186 542 942 310 331 317 789 272 1004 359 Optics 6407 | . . . . . . . . . . . . . . 73 304 79 546 593 . . . . 541 889 310 331 317 789 272 1004 359 Sensors 4044 | . . . . . . . . . . . . . . . . . . 150 162 106 129 186 397 486 3 . 153 761 242 977 292 IFF 1478 | . . . . . . . . . . . . 126 192 153 304 5 546 152 . . . . . . . . . . . . . Terrain 3571 | . . . . . . . . . . . . . . . . . . 416 162 106 142 186 387 . . . . 661 187 971 353 Seismic 1291 | 30 39 . . . . . . 376 190 19 168 469 . . . . . . . . . . . . . . . . . . . T.N.C. 2724 | . 1217 1308 . . . . . 199 . . . . . . . . . . . . . . . . . . . . . . . Machine Analysis 2414 | . . . . . . . . . . . . 693 248 155 304 70 546 398 . . . . . . . . . . . . . Jamming 2 | . . . . . . . . . . . . 2 . . . . . . . . . . . . . . . . . . . ECM 22 | . . . . . . . . 21 . . . 1 . . . . . . . . . . . . . . . . . . . Robot Analysis Total . | . . . . . . . . . . . . . . . . . . . . . . . . . . . . . . . . Derelict Logs Recovered 14 | . . . . . . . . . 2 . 1 . 1 3 1 . 3 . 3 . . . . . . . . . . . . Drone Launches . | . . . . . . . . . . . . . . . . . . . . . . . . . . . . . . . . Drone Recoveries . | . . . . . . . . . . . . . . . . . . . . . . . . . . . . . . . . Exploration | -11 -10 -9 -9 -9 -8 -8 -8 -7 -7 -7 -6 -6 -6 -6 -6 -6 -5 -5 -5 -5 -5 -4 -4 -4 -4 -4 -4 -3 -3 -2 -1 ------------- Run | Yrd Mat Mat Min Exi Min Mat Gar Fac Low Dat Pro Fac Low Low Zio Dee Pro Fac Upp Upp War Pro Fac Ext Cet Arc Hub Res Qua Res Acc Turns Passed 16252 | 158 1256 1593 184 136 348 1875 1286 737 190 19 168 693 248 155 304 79 546 815 162 106 142 186 542 942 310 331 317 789 272 1004 359 Spaces Moved 22233 | 100 580 710 140 114 250 748 377 1276 464 83 692 1196 633 541 994 250 712 1537 604 407 531 344 1246 1484 365 258 463 1762 495 2226 651 Core 50 | 15 . . . . . . . . . . . . . . . . . . . . . . . . . . . . . 35 . Treads 769 | . . 106 . . . 426 237 . . . . . . . . . . . . . . . . . . . . . . . . Legs 793 | 85 560 . . . . . 140 8 . . . . . . . . . . . . . . . . . . . . . . . Wheels 1450 | . 20 604 140 114 250 322 . . . . . . . . . . . . . . . . . . . . . . . . . Hover . | . . . . . . . . . . . . . . . . . . . . . . . . . . . . . . . . Flight 19171 | . . . . . . . . 1268 464 83 692 1196 633 541 994 250 712 1537 604 407 531 344 1246 1484 365 258 463 1762 495 2191 651 Fastest Speed 5 | 50 90 120 120 120 120 120 240 6 5 23 23 5 6 20 20 5 20 6 21 21 20 20 14 14 14 14 15 19 17 20 18 Average Speed 43 | 111 186 151 120 120 120 186 272 24 22 23 23 20 20 22 22 18 20 20 21 21 20 20 19 16 22 14 30 27 27 25 23 Slowest Speed 560 | 120 190 560 120 120 120 240 480 260 23 23 23 90 24 23 23 23 24 97 21 21 21 20 92 87 87 15 182 109 98 150 100 Overloaded Moves 342 | . . . . . . . . 41 6 . . 81 22 . . 28 . 38 . . . . 75 . . . . . 35 . 16 Propulsion Burnouts . | . . . . . . . . . . . . . . . . . . . . . . . . . . . . . . . . Robots Hopped 75 | . . . . . . . . 8 . . . 8 3 . . 2 . 6 . . . . 9 10 . . 8 8 7 3 3 Potential Cave-ins 2 | . . . . . . . . . . . . . . . . . . . . . . . . . . . . . . . 2 Cave-ins Triggered . | . . . . . . . . . . . . . . . . . . . . . . . . . . . . . . . . Exploration Rate (%) 55 | 6 86 66 29 17 54 68 45 36 52 69 78 21 81 69 81 50 77 48 78 58 70 55 34 90 73 91 41 35 61 42 13 Regions Visited 31 Branch Regions 20 Pre-discovered Areas 5 | . . . . . . . . . 1 1 . . . . 1 . . . 2 . . . . . . . . . . . . Known Exits Taken 16 | . . . . . . 1 . 1 . . . 1 1 . . . 1 1 1 1 1 1 1 1 . . 1 1 1 1 . Unknown Exits Taken 14 | 1 1 1 1 1 1 . . . 1 1 1 . . 1 1 1 . . . . . . . . 1 1 . . . . . Scrap Searched 18 | . . . 1 . . . . . 1 . 1 . 2 2 3 . 3 . 1 1 . 3 . . . . . . . . . Spaces Dug 288 | . 1 5 . . . 18 . 42 . . . 26 7 41 . . 8 37 2 4 . 4 27 3 . . 10 20 6 9 18 Terrain Destroyed 804 | . 1 7 . . . 81 20 88 . . . 41 63 41 . . 8 117 2 4 . 6 64 74 38 . 10 86 6 9 38 Melee 179 | . . 5 . . . 3 . 42 . . . 22 6 2 . . 8 26 2 1 . 3 16 2 . . 8 17 3 9 4 Projectile 75 | . 1 . . . . 12 . . . . . 4 1 . . . . 16 . 3 . 3 12 5 2 . 2 3 3 . 8 AOE 550 | . . 2 . . . 66 20 46 . . . 15 56 39 . . . 75 . . . . 36 67 36 . . 66 . . 26 Terrain Rammed . | . . . . . . . . . . . . . . . . . . . . . . . . . . . . . . . . Walls Destroyed . | . . . . . . . . . . . . . . . . . . . . . . . . . . . . . . . . Machines Disabled . | . . . . . . . . . . . . . . . . . . . . . . . . . . . . . . . . Actions | -11 -10 -9 -9 -9 -8 -8 -8 -7 -7 -7 -6 -6 -6 -6 -6 -6 -5 -5 -5 -5 -5 -4 -4 -4 -4 -4 -4 -3 -3 -2 -1 --------- Run | Yrd Mat Mat Min Exi Min Mat Gar Fac Low Dat Pro Fac Low Low Zio Dee Pro Fac Upp Upp War Pro Fac Ext Cet Arc Hub Res Qua Res Acc Total 27015 | 125 680 1023 146 113 277 1058 550 1528 541 82 694 1525 695 564 1042 278 1074 1820 620 420 561 444 1437 2056 564 523 582 1985 607 2616 785 Wait 2498 | . 17 101 2 . 13 80 30 63 68 . . 187 27 15 26 24 337 52 6 5 12 89 79 343 149 221 74 116 85 228 49 Move 22062 | 99 579 709 139 113 249 748 376 1261 463 82 691 1180 626 540 993 245 711 1524 603 406 530 343 1229 1463 364 257 448 1746 480 2220 645 Hop 65 | . . . . . . . . 6 . . . 7 3 . . 2 . 6 . . . . 7 10 . . 6 7 7 2 2 Pick Up 222 | 8 13 35 . . 1 27 16 8 3 . . 16 2 . 3 2 . 7 . 2 . . 17 11 4 6 2 13 7 12 7 Fast Attach 174 | 7 7 8 . . 1 18 7 11 . . . 12 1 2 . . 1 20 . . 6 . 3 . 6 8 6 13 . 32 5 Attach 114 | . 4 8 . . 1 10 4 12 3 . . 7 . 1 . 1 . 6 . 1 . . 8 13 5 2 4 10 4 5 5 Detach 51 | . 1 1 . . . 3 . 2 . . . 4 . . . . . 6 . . . . 3 6 4 1 3 9 . 8 . Swap 360 | . 10 30 . . . 30 17 23 . . . 27 9 2 2 1 6 42 1 . 6 3 23 22 11 3 8 14 9 42 19 Drop 314 | . 10 28 . . . 44 19 35 . . . 20 2 1 2 2 1 28 1 1 7 . 16 5 8 10 6 16 5 40 7 Fire 516 | 11 39 86 5 . 12 95 48 14 . . . 21 9 1 1 . . 52 . 3 . 4 14 34 8 . 2 7 5 14 31 Melee 465 | . . 16 . . . 3 3 90 4 . 3 44 16 2 15 1 18 64 9 2 . 5 38 25 5 15 20 34 5 13 15 Ram . | . . . . . . . . . . . . . . . . . . . . . . . . . . . . . . . . Kick . | . . . . . . . . . . . . . . . . . . . . . . . . . . . . . . . . Crush 1 | . . 1 . . . . . . . . . . . . . . . . . . . . . . . . . . . . . Escape Stasis 45 | . . . . . . . 29 3 . . . . . . . . . 13 . . . . . . . . . . . . . Rewire 124 | . . . . . . . . . . . . . . . . . . . . . . . . 124 . . . . . . . Trap 1 | . . . . . . . 1 . . . . . . . . . . . . . . . . . . . . . . . . Miscellaneous 3 | . . . . . . . . . . . . . . . . . . . . . . . . . . . 3 . . . . Route ------- -11/Scrapyard -10/Materials (discovered 5 exits: *Mat x3 / [*Min] / [*Sub]) -9/Materials (discovered 4 exits: *Mat x2 / [*Min x2]) -9/Mines -9/Exiles -8/Mines -8/Materials (discovered 3 exits: *Fac x2 / Gar) -8/Garrison -7/Factory (discovered 5 exits: *Fac / Sto x2 / *Low x2) -7/Lower Caves (discovered 3 exits: [*Low] / *Zio / *Dat) -7/Data Miner -6/Proximity Caves -6/Factory (discovered 4 exits: *Fac x2 / *Low x2) -6/Lower Caves -6/Lower Caves -6/Zion -6/Deep Caves -5/Proximity Caves -5/Factory (discovered 3 exits: *Fac / *Upp x2) -5/Upper Caves -5/Upper Caves -5/Warlord -4/Proximity Caves -4/Factory (discovered 7 exits: *Res x3 / Upp x2 / *Ext x2) -4/Extension (discovered 2 exits: *Res / *Cet) -4/Cetus (discovered 2 exits: *Res / *Arc) -4/Archives (discovered 3 exits: *Res / *Hub x2) -4/Hub_04(d) (discovered 4 exits: *Res x4) -3/Research (discovered 4 exits: *Res x2 / *Qua x2) -3/Quarantine -2/Research (discovered 2 exits: *Acc / *Tes) -1/Access Tau Ceti IV Orbit History --------- Turn | Location | Event 5 | -11/Scrapyard | Discovered new exit (range 16) 159 | -11/Scrapyard | Entered Materials 241 | -10/Materials | Discovered new exit (range 12) 303 | -10/Materials | Build established: Mutant 517 | -10/Materials | Discovered new exit (range 10) 728 | -10/Materials | Build established: Scavenger-Mutant 893 | -10/Materials | Discovered new exit (range 9) 963 | -10/Materials | Discovered new exit (range 9) 1083 | -10/Materials | Discovered new exit (range 7) 1259 | -10/Materials | Derelicts attacked the area 1415 | -10/Materials | Entered another Materials area 1415 | -9/Materials | Evolved 2 slots: Propulsion x1, Utility x1 1675 | -9/Materials | Build established: Mutant 1811 | -9/Materials | Discovered new exit (range 16) 2386 | -9/Materials | Discovered new exit (range 16) 2484 | -9/Materials | Repaired Med. Armor Plating 2915 | -9/Materials | Discovered new exit (range 7) 2946 | -9/Materials | Discovered new exit (range 16) 3008 | -9/Materials | Entered Mines 3187 | -9/Mines | Deemed a non-threat by the Exiles lab entrance 3187 | -9/Mines | Discovered new exit (range 5) 3192 | -9/Mines | Entered Exiles 3220 | -9/Exiles | Discovered new exit (range 15) 3262 | -9/Exiles | Met 8R-AWN 3279 | -9/Exiles | Met EX-HEX 3328 | -9/Exiles | Entered Mines 3664 | -8/Mines | Discovered new exit (range 6) 3676 | -8/Mines | Entered Materials 3676 | -8/Materials | Evolved 2 slots: Propulsion x1, Utility x1 4693 | -8/Materials | Discovered new exit (range 3) 5223 | -8/Materials | Garrison activated, responded to threat 5310 | -8/Materials | Discovered new exit (range 12) 5496 | -8/Materials | Core integrity fell below 50% 5551 | -8/Materials | Identified exit to Garrison 5551 | -8/Materials | Entered Garrison 5783 | -8/Garrison | Triggered checkpoint 5792 | -8/Garrison | Build established: Scavenger-Mutant 5898 | -8/Garrison | Garrison Relay disabled 5942 | -8/Garrison | Garrison Relay disabled 5942 | -8/Garrison | Garrison Relay disabled 6009 | -8/Garrison | Lost 6 parts (4n1u1w) 6084 | -8/Garrison | Garrison Relay disabled 6116 | -8/Garrison | Garrison Relay disabled 6283 | -8/Garrison | Triggered checkpoint 6325 | -8/Garrison | Triggered checkpoint 6418 | -8/Garrison | Triggered checkpoint 6522 | -8/Garrison | Discovered new exit (range 12) 6745 | -8/Garrison | Garrison Relay disabled 6837 | -8/Garrison | Entered Factory 6837 | -7/Factory | Evolved 2 slots: Propulsion x2 7162 | -7/Factory | Build established: Hacker-Sprinter 7173 | -7/Factory | Identified exit to Storage 7173 | -7/Factory | Identified exit to Lower Caves 7237 | -7/Factory | First assault squad dispatched 7494 | -7/Factory | Discovered new exit (range 16) 7574 | -7/Factory | Entered Lower Caves 7576 | -7/Lower Caves | Encountered an infested base 7593 | -7/Lower Caves | Met a Warlord Commander 7594 | -7/Lower Caves | Learned location of Warlord (-5) 7595 | -7/Lower Caves | Warlord Commander delivered Encrypted Comm Array 7595 | -7/Lower Caves | Found Encrypted Comm Array 7602 | -7/Lower Caves | Learned 4 Factory zone layouts 7631 | -7/Lower Caves | Encountered a Warlord checkpoint 7638 | -7/Lower Caves | Discovered new exit (range 9) 7649 | -7/Lower Caves | Attacked by a delusional Derelict stockpiling parts 7738 | -7/Lower Caves | A Derelict revealed a hidden shortcut to a safe place 7740 | -7/Lower Caves | A Derelict revealed a hidden shortcut to meet someone special 7764 | -7/Lower Caves | Entered Data Miner 7764 | -7/Data Miner | Discovered new exit (range 6) 7769 | -7/Data Miner | Met Data Miner 7773 | -7/Data Miner | Learned location of Section 7 (-2) 7773 | -7/Data Miner | Acquired the access code to Warlord's prototype stash 7778 | -7/Data Miner | Received God Mode back door access code from Data Miner 7783 | -7/Data Miner | Entered Proximity Caves 7900 | -6/Proximity Caves | Discovered new exit (range 13) 7951 | -6/Proximity Caves | Entered Factory 7951 | -6/Factory | Evolved 2 slots: Utility x2 7952 | -6/Factory | Identified exit to Lower Caves 7953 | -6/Factory | Identified exit to Factory 8007 | -6/Factory | Allied Derelicts emerged from ambush trap array 8160 | -6/Factory | Fabricated Lgt. Regenerative Plating? 8232 | -6/Factory | Joined by Warlord Dakka squad 8325 | -6/Factory | Lost 3 allies 8353 | -6/Factory | Found Prototype Launcher 8353 | -6/Factory | Identified Scatter Rocket Array 8364 | -6/Factory | Found Scatter Rocket Array 8455 | -6/Factory | Fabricated Cld. Cesium-ion Thruster? 8493 | -6/Factory | Discovered exit to Factory (range 15) 8558 | -6/Factory | Fabricated Hyp. Coil Gun? 8644 | -6/Factory | Entered Lower Caves 8666 | -6/Lower Caves | Identified exit to Lower Caves 8818 | -6/Lower Caves | Attracted the attention of an 0b10 checkpoint 8892 | -6/Lower Caves | Entered another Lower Caves area 8896 | -6/Lower Caves | Spotted B-75 Beast 8936 | -6/Lower Caves | Learned Factory emergency access door positions 8970 | -6/Lower Caves | Found Alien Artifact 8970 | -6/Lower Caves | Identified Core Expander 8970 | -6/Lower Caves | Installed Core Expander, added new Utility slot 9017 | -6/Lower Caves | Discovered new exit (range 16) 9018 | -6/Lower Caves | Learned Factory emergency access door positions 9047 | -6/Lower Caves | Entered Zion 9075 | -6/Zion | Found CR-A16's Pointy Stick 9095 | -6/Zion | Given the Hacking Drone Bay 9112 | -6/Zion | Learned Factory stockpile data 9113 | -6/Zion | Build established: Sprinter 9119 | -6/Zion | Received a hallucinogenic algorithm 9119 | -6/Zion | Ran a hallucination algorithm 9289 | -6/Zion | Discovered new exit (range 4) 9289 | -6/Zion | Saw the warning signs outside the Deep Caves entrance 9351 | -6/Zion | Entered Deep Caves 9367 | -6/Deep Caves | Found Surveybot 24 Scanner 9369 | -6/Deep Caves | Found Surveybot 24 Chip 9429 | -6/Deep Caves | Discovered new exit (range 7) 9430 | -6/Deep Caves | Entered Proximity Caves 9635 | -5/Proximity Caves | Learned Factory security intel 9698 | -5/Proximity Caves | Learned Factory stockpile data 9856 | -5/Proximity Caves | Discovered exit to Factory (range 12) 9976 | -5/Proximity Caves | Entered Factory 9976 | -5/Factory | Evolved 2 slots: Power x1, Propulsion x1 9977 | -5/Factory | Identified exit to Upper Caves 10067 | -5/Factory | Found Prototype Launcher 10098 | -5/Factory | Identified Rocket Array 10125 | -5/Factory | Spotted B-75 Beast 10243 | -5/Factory | Garrison activated, responded to threat 10404 | -5/Factory | Discovered exit to Upper Caves (range 6) 10484 | -5/Factory | Discovered new exit (range 16) 10523 | -5/Factory | Fabricated Exp. Propulsion Shielding? 10529 | -5/Factory | Destroyed 7 combat bots 10791 | -5/Factory | Entered Upper Caves 10862 | -5/Upper Caves | Learned Factory emergency access door positions 10894 | -5/Upper Caves | Identified exit to Upper Caves 10904 | -5/Upper Caves | Learned Factory stockpile data 10915 | -5/Upper Caves | Learned Factory emergency access door positions 10915 | -5/Upper Caves | Learned Extension trap positions 10915 | -5/Upper Caves | Learned location of Armory (-4) 10953 | -5/Upper Caves | Entered another Upper Caves area 10964 | -5/Upper Caves | Encountered a Warlord checkpoint 11010 | -5/Upper Caves | Build established: Scout 11030 | -5/Upper Caves | Discovered new exit (range 18) 11056 | -5/Upper Caves | Identified exit to Warlord 11059 | -5/Upper Caves | Entered Warlord 11069 | -5/Warlord | Discovered new exit (range 15) 11074 | -5/Warlord | System corruption cleaned by Quarantine Array 11110 | -5/Warlord | Opened Warlord's prototype stash 11112 | -5/Warlord | Found Prototype Hackware 11112 | -5/Warlord | Identified Ghost Barrier 11117 | -5/Warlord | Found Prototype Processor 11117 | -5/Warlord | Identified Exp. Targeting Computer 11121 | -5/Warlord | Found Prototype Device 11121 | -5/Warlord | Identified Exp. Focal Shield 11176 | -5/Warlord | Met Warlord 11196 | -5/Warlord | Opened side exit 11201 | -5/Warlord | Warlord's base attacked by MAIN.C 11201 | -5/Warlord | Identified exit to Proximity Caves 11201 | -5/Warlord | Entered Proximity Caves 11222 | -4/Proximity Caves | Attracted the attention of an 0b10 base 11224 | -4/Proximity Caves | Learned Armory security intel 11224 | -4/Proximity Caves | Learned Extension stockpile data 11272 | -4/Proximity Caves | Discovered new exit (range 18) 11277 | -4/Proximity Caves | Identified exit to Factory 11387 | -4/Proximity Caves | Entered Factory 11387 | -4/Factory | Evolved 2 slots: Utility x2 11388 | -4/Factory | Identified exit to Upper Caves 11388 | -4/Factory | Identified exit to Extension 11410 | -4/Factory | Build established: Hacker-Scout 11510 | -4/Factory | Discovered new exit (range 20) 11696 | -4/Factory | Discovered new exit (range 18) 11696 | -4/Factory | Discovered new exit (range 21) 11701 | -4/Factory | Discovered exit to Extension (range 17) 11799 | -4/Factory | Identified exit to Research 11871 | -4/Factory | Fabricated Exp. Propulsion Shielding? 11887 | -4/Factory | Search patrols dispatched 11899 | -4/Factory | Spotted B-86 Titan 11900 | -4/Factory | Fabricated Imp. Phase Shifter? 11928 | -4/Factory | Ran a hallucination algorithm 11929 | -4/Factory | Entered Extension 11930 | -4/Extension | Loaded intel: 18 trap records 11978 | -4/Extension | Rescued a captive Derelict 12097 | -4/Extension | Spotted B-86 Titan 12179 | -4/Extension | Search patrols dispatched 12207 | -4/Extension | Spotted B-86 Titan 12273 | -4/Extension | Revealed the true nature of CR-A16's Pointy Stick 12277 | -4/Extension | Destroyed B-86 Titan 12380 | -4/Extension | Build established: Hacker-Sprinter 12477 | -4/Extension | Destroyed B-86 Titan 12494 | -4/Extension | Rescued A7 12511 | -4/Extension | Rescued a captive Derelict 12513 | -4/Extension | Rescued a captive Derelict 12526 | -4/Extension | Rescued a captive Derelict 12536 | -4/Extension | Rescued a captive Derelict 12568 | -4/Extension | Incoming investigation squad redirected 12726 | -4/Extension | Rescued a captive Derelict 12730 | -4/Extension | Energy Cycler disabled 12730 | -4/Extension | Rescued a captive Derelict 12804 | -4/Extension | Discovered exit to Research (range 10) 12804 | -4/Extension | Discovered new exit (range 6) 12805 | -4/Extension | Identified exit to Cetus 12871 | -4/Extension | Entered Cetus 12871 | -4/Cetus | Accompanied by 7 allies (A7) 12876 | -4/Cetus | Acquired a Cetus Manufacturing Module code from A7 12877 | -4/Cetus | Spotted Cetus Guard 12877 | -4/Cetus | Spotted Cetus Guard 12877 | -4/Cetus | Spotted Cetus Guard 12877 | -4/Cetus | Spotted Cetus Guard 12901 | -4/Cetus | Allies destroyed Cetus Guard 12914 | -4/Cetus | Allies destroyed Cetus Guard 12917 | -4/Cetus | Destroyed Cetus Guard 12921 | -4/Cetus | Allies destroyed Cetus Guard 12932 | -4/Cetus | System corruption reached 10% 12938 | -4/Cetus | Lost 4 allies 12942 | -4/Cetus | Started Cetus Manufacturing Module 12967 | -4/Cetus | Manufactured an Enhanced Grunt 12992 | -4/Cetus | Manufactured an Enhanced Grunt 13017 | -4/Cetus | Manufactured an Enhanced Grunt 13042 | -4/Cetus | Manufactured an Enhanced Grunt 13067 | -4/Cetus | Manufactured an Enhanced Grunt 13071 | -4/Cetus | Discovered new exit (range 21) 13103 | -4/Cetus | Spotted Cetus Guard 13105 | -4/Cetus | Spotted Cetus Guard 13107 | -4/Cetus | Spotted Cetus Guard 13110 | -4/Cetus | Spotted Cetus Guard 13120 | -4/Cetus | Allies destroyed Cetus Guard 13121 | -4/Cetus | Allies destroyed Cetus Guard 13122 | -4/Cetus | Allies destroyed Cetus Guard 13126 | -4/Cetus | Discovered exit to Research (range 22) 13128 | -4/Cetus | Allies destroyed Cetus Guard 13131 | -4/Cetus | Murdered A7 13135 | -4/Cetus | Extracted ID and sensor layout for unrecognized location from A7's data core 13137 | -4/Cetus | Met Revision 17 13181 | -4/Cetus | Entered Archives 13181 | -4/Archives | Accompanied by 6 allies 13247 | -4/Archives | Discovered new exit (range 22) 13255 | -4/Archives | Discovered new exit (range 20) 13264 | -4/Archives | Discovered exit to Research (range 22) 13277 | -4/Archives | Unable to access archive contents 13277 | -4/Archives | Ran a hallucination algorithm 13512 | -4/Archives | Entered Hub_04(d) 13512 | -4/Hub_04(d) | Accompanied by 5 allies 13512 | -4/Hub_04(d) | Discovered exit to Research (range 21) 13667 | -4/Hub_04(d) | Core integrity fell below 50% 13743 | -4/Hub_04(d) | Lost 6 parts (2p4n) 13787 | -4/Hub_04(d) | Network Hub disabled 13795 | -4/Hub_04(d) | Incoming investigation squad redirected 13796 | -4/Hub_04(d) | Found Prototype Hackware 13813 | -4/Hub_04(d) | Lost 3 allies 13829 | -4/Hub_04(d) | Entered Research 13829 | -3/Research | Evolved 2 slots: Propulsion x1, Utility x1 13833 | -3/Research | Identified Exp. Hacking Suite 13848 | -3/Research | Lost 4 parts (1p2n1w) 13990 | -3/Research | Fabricated Cld. Cesium-ion Thruster (x1) 14029 | -3/Research | Revision forces began assault on 0b10 14069 | -3/Research | Met up with Revision 17++ 14082 | -3/Research | Central database locked down 14122 | -3/Research | Identified exit to Quarantine 14195 | -3/Research | Fabricated Cld. Nuclear Pulse Thruster? 14195 | -3/Research | Repaired Shock Maul? 14304 | -3/Research | Lost 3 parts (1p1n1u) 14343 | -3/Research | Fabricated Cld. Nuclear Pulse Thruster? 14437 | -3/Research | Lost 4 allies 14477 | -3/Research | Discovered new exit (range 15) 14483 | -3/Research | Build established: Hacker-Scout 14499 | -3/Research | Discovered new exit (range 16) 14501 | -3/Research | Identified exit to Research 14529 | -3/Research | Research terminal network offline 14618 | -3/Research | Entered Quarantine 14624 | -3/Quarantine | Found Alien Artifact 14804 | -3/Quarantine | Found Gamma Bomb Array 14848 | -3/Quarantine | Identified Core Reset Matrix 14848 | -3/Quarantine | Used Core Reset Matrix 14852 | -3/Quarantine | Detected hypermatrix surge 14852 | -3/Quarantine | Sensed 11 artifacts in vicinity 14853 | -3/Quarantine | Met incapacitated Sigix Warrior 14853 | -3/Quarantine | Lockdown squad dispatched 14854 | -3/Quarantine | Acquired the access code to the Sigix quarantine chamber 14855 | -3/Quarantine | Unlocked Sigix quarantine chamber 14856 | -3/Quarantine | Found Sigix Containment Pod 14880 | -3/Quarantine | Discovered exit to Research (range 9) 14886 | -3/Quarantine | Found Transdimensional Reconstructor 14890 | -3/Quarantine | Entered Research 14890 | -2/Research | Warlord forces began assault on 0b10 14890 | -2/Research | Evolved 2 slots: Utility x2 14900 | -2/Research | Found Unknown Launcher 14900 | -2/Research | Identified Fusion Bomb Launcher 14915 | -2/Research | Distinguished unit "Grunt Murderers" dispatched to help 14928 | -2/Research | Discovered new exit (range 14) 14947 | -2/Research | Identified exit to Testing 15000 | -2/Research | Research machine network offline 15154 | -2/Research | Met up with Warlord 15228 | -2/Research | Found Prototype Launcher 15228 | -2/Research | Identified Point Singularity Launcher 15346 | -2/Research | Borebot progress halted 15373 | -2/Research | Found Prototype Device 15373 | -2/Research | Identified Exp. Thermal Defense Suite 15442 | -2/Research | Lost 3 allies 15485 | -2/Research | Borebot progress halted 15573 | -2/Research | Spotted Executioner 15586 | -2/Research | Borebot progress halted 15620 | -2/Research | Found Prototype Processor 15620 | -2/Research | Identified Exp. Core Analyzer 15632 | -2/Research | Lost 5 allies 15681 | -2/Research | Discovered new exit (range 6) 15682 | -2/Research | Identified exit to Access 15770 | -2/Research | Spotted Striker 15835 | -2/Research | Met DD-05H 15894 | -2/Research | Entered Access 15894 | -1/Access | Evolved 2 slots: Utility x2 16042 | -1/Access | Spotted B-99 Colossus 16049 | -1/Access | Spotted B-99 Colossus 16050 | -1/Access | Destroyed B-99 Colossus 16056 | -1/Access | Destroyed B-99 Colossus 16057 | -1/Access | Discovered new exit (range 11) 16064 | -1/Access | Unchained authorized (6S-H0T) 16094 | -1/Access | Identified exit to Surface 16095 | -1/Access | Lost 3 parts (2n1u) 16109 | -1/Access | Found Prototype Ballistic Gun 16110 | -1/Access | Identified Multirail 16113 | -1/Access | Found Multirail 16115 | -1/Access | Found Multirail 16253 | *** | Destroyed 0b10! Last Messages --------------- 16244_ Q-thruster destroyed. 16245_ 6S-H0T reloads Prototype Ballistic Gun with 6S-H0T's SS Cartridge. 16245_ U-05 Engineer lays Concrete. 16245_ K-01 Serf collects debris. 16247_ 6S-H0T reloads Prototype Ballistic Gun with 6S-H0T's SS Cartridge. 16247_ Identified Impulse Thruster Array. 16247_ Integrated Corrupted Impulse Thruster Array (+2). 16247_ Complication: System interference. 16247_ Imp. Terrain Scanner temporarily disabled. 16248_ Nuclear Pulse Array destroyed. 16248_ Dropped Point Singularity Launcher. 16249_ 6S-H0T reloads Prototype Ballistic Gun with 6S-H0T's SS Cartridge. 6S-H0T: "There's more where that came from!" 16252_ K-01 Serf collects debris. [Achievement: Payload Armed] Map ----- +----------------------------------------------------+ | #### ##### ??? ?#????????????# ?????????? | | ###"############? "????????????????? ????????? | | ##"############## ????????????????? ????????? | | !############## ????????????????? ????????? | | ############## ? ????????????????? ????????? | | ^ ############## ??????????????????# #????????? | | " [############## ???????? ????# #????????? | | " #####################??## ? ? # ##? ?????? | | ######################### ?? ? + ##? ?????? | | ######################### # ## ?? ?? | | ######################### # ## ?"?? | | ############################ # ## ?? ? | | ## *################### # ## ?? ? | | ## ################### # ## | | ##"" ############################# ## ? ? | | ##"" ############################# ## | | ##"" ############################# ## ? | | ##T ############################# ########## | | ##"" ############################# ########## | | ##"" ####### ##################### ########## | | ##"" ##################### #######R ########## | | ## # !!]* """ #####?#### | | ## # !! ! "" = ## ?# | | ######+### ]=!* "" " *!## ? | | ] !* """ ## # | | ! """" "@ = ## # | | !]! """" "" ! ## # | | " ## # | | ### k k u k ## # | | # " """ """ ## # | | ]# """" """ """ ## + | | # #################### ##;;### ## # | | / # ##################### ### ## # | | # #####################"### ## + | | # + ]# ## # | | # ############ # # ## # | | # ####### # # " # ## # | | # ####### + + """ # ## # | | # ####### #### # """ # ## # | | ? #^ ^ + # #### # " # ########## | | ? # # # #### # =# #######?## | | +?# # # #### # ] # ########## | | ? + #+######### # = # # ? | | ###+##### # # ######### ########## # ? | | #? ?? # # # #########+########## # " ? | | ???? ?? # # ? # ####### # # "?" ?? | | ?????? # #?##### ###??## # # ?""? ??? | | ??? ? ?# ? ?? ????##### | # # ?????? | | ?? ? ???? ? ? ? ? +? # # ???????? | | ?????? ??# ?????#??##?### ? # ?????????? | +----------------------------------------------------+ Best States ------------- Heat Dissipation 83 Energy Generation 43 Energy Capacity 500 Matter Stores 300 Matter Capacity 300 Sight Range 23 Robot Scan Range 18 Terrain Scan Range 20 Terrain Scan Density 2010 ECM Strength 2 Jamming Range 12 Additional Mass Support 20 Armor Coverage 225 Propulsion Shielding 90 Evasion (%) 79 Targeting Accuracy 5 Melee Accuracy 8 Target Analysis 8 Armor Integrity Analysis 30 Recoil Reduction 4 Energy Filtering 50 Offensive Hacking 50 Defensive Hacking 30 Authchip Count 1 Trap Extractor Capacity 4 Item Schematics ----------------- None Robot Schematics ------------------ None Fabricated ------------ Lgt. Regenerative Plating | x1 | -6/Factory Cld. Cesium-ion Thruster | x1 | -6/Factory | Authchip Hyp. Coil Gun | x2 | -6/Factory Exp. Propulsion Shielding | x1 | -5/Factory Exp. Propulsion Shielding | x1 | -4/Factory Imp. Phase Shifter | x2 | -4/Factory | Preloaded Cld. Cesium-ion Thruster | x1 | -3/Research Cld. Nuclear Pulse Thruster | x1 | -3/Research Cld. Nuclear Pulse Thruster | x1 | -3/Research Repaired ---------- Med. Armor Plating | 30% | -9/Materials Shock Maul | 19% | -3/Research Studied --------- None Alien Tech Used ----------------- Core Expander Core Reset Matrix Achievements -------------- Doshington Fitting Room Hack The Planet Hackathon Payload Armed Production Line Reappropriation The Robot, The Myth, The Legend Watch This! Challenges ------------ None Game ------ Seed MatterPartitionScrap Manual? 0 Play Time 12:10:14 Cumulative 232.4 hours Start 2025.11.23 @ 15:58:59 End 2025.11.24 @ 16:39:25 Sessions 3 Manual Loads 0 Difficulty Rogue Special Mode None Game No. 68 Rogue 68 Adventurer 0 Explorer 0 Win Type 3 Total 3 Types 2/0/0/1/0/0/0/0/0/0 Lore% 65 Gallery% 65 Achievement% 50 Wizard Run 0 Options --------- Layout 1 ASCII 0 Keyboard 0 Movement Mouse Keybinds 0 Fullscreen 1 Font 32/Smallcaps Map View 50x35 Zoom Use 0% Tactical HUD 1 Map Filters NONE Filters NONE Steam 1 RUN: 05c00776-eaf5-4e69-9343-f41f3f75c76e